Workbook

Sheet Ward summary
D1: Ward profile - All data 1st Jan 2011 to 31st Dec 2015
A3: Select ward: | B3: Colchester:Shrub End
A4: Sort by:
A21: Fatalities: | B21: =VLOOKUP($B$3,data,12,FALSE) -> 0 | D21: Casualties per 1k population: | E21: =VLOOKUP($B$3,data,17,FALSE) -> 3.065198984
A22: Serious injuries: | B22: =VLOOKUP($B$3,data,13,FALSE) -> 24 | D22: Involved drivers per 1k population: | E22: =VLOOKUP($B$3,data,32,FALSE) -> 3.420829805
A23: Slight injuries: | B23: =VLOOKUP($B$3,data,14,FALSE) -> 157 | D23: Ward population: | E23: =VLOOKUP($B$3,data,2,FALSE) -> 11810
A28: Age group | B28: Population | C28: Casualties | D28: Motor vehicle drivers (involved in collisions) | G28: The ward rank shows where each ward is in comparison with the other wards in Essex, Southend and Thurrock. The longer thee coloured bar, the higher the risk/numbers for the selected ward. Some wards may appear very high risk due to have a very small population, and may only have a small number of residents involved in collisions. Wards closer to borders with other areas may undercount numbers and risk due to a higher prbability of having a collision outside of essex (and therefore not counted in our data).
A29: U16 | B29: =VLOOKUP($B$3,data,4,FALSE) -> 3142 | C29: =VLOOKUP($B$3,data,23,FALSE) -> 7
A30: 16-25 | B30: =VLOOKUP($B$3,data,5,FALSE) -> 1631 | C30: =VLOOKUP($B$3,data,24,FALSE) -> 72 | D30: =VLOOKUP($B$3,data,36,FALSE) -> 64
A31: 26-35 | B31: =VLOOKUP($B$3,data,6,FALSE) -> 2265 | C31: =VLOOKUP($B$3,data,25,FALSE) -> 38 | D31: =VLOOKUP($B$3,data,37,FALSE) -> 47
A32: 36-45 | B32: =VLOOKUP($B$3,data,7,FALSE) -> 1716 | C32: =VLOOKUP($B$3,data,26,FALSE) -> 20 | D32: =VLOOKUP($B$3,data,38,FALSE) -> 37
A33: 46-55 | B33: =VLOOKUP($B$3,data,8,FALSE) -> 1260 | C33: =VLOOKUP($B$3,data,27,FALSE) -> 24 | D33: =VLOOKUP($B$3,data,39,FALSE) -> 33
A34: 56-65 | B34: =VLOOKUP($B$3,data,9,FALSE) -> 774 | C34: =VLOOKUP($B$3,data,28,FALSE) -> 11 | D34: =VLOOKUP($B$3,data,40,FALSE) -> 13
A35: 66-75 | B35: =VLOOKUP($B$3,data,10,FALSE) -> 589 | C35: =VLOOKUP($B$3,data,29,FALSE) -> 5 | D35: =VLOOKUP($B$3,data,41,FALSE) -> 5
A36: 76+ | B36: =VLOOKUP($B$3,data,11,FALSE) -> 433 | C36: =VLOOKUP($B$3,data,30,FALSE) -> 3 | D36: =VLOOKUP($B$3,data,42,FALSE) -> 2
A38: Mode of transport | B38: Casualties | C38: Drivers
A39: Car | B39: =VLOOKUP($B$3,data,18,FALSE) -> 116 | C39: =VLOOKUP($B$3,data,33,FALSE) -> 162
A40: Motorcycle | B40: =VLOOKUP($B$3,data,19,FALSE) -> 29 | C40: =VLOOKUP($B$3,data,34,FALSE) -> 29
A41: Bicycle | B41: =VLOOKUP($B$3,data,20,FALSE) -> 18
A42: Pedestrian | B42: =VLOOKUP($B$3,data,21,FALSE) -> 12
A43: Other | B43: =VLOOKUP($B$3,data,22,FALSE) -> 6 | C43: =VLOOKUP($B$3,data,35,FALSE) -> 11
A45: Risk measure | B45: Ward Rank | C45: Total Wards in Essex
A46: Ward rank: Casualty risk | B46: =VLOOKUP($B$3,data,43,FALSE) -> 289 | C46: =296-B46 -> 7
A47: Ward rank: Casualty numbers | B47: =VLOOKUP($B$3,data,45,FALSE) -> 292 | C47: =296-B47 -> 4
A48: Ward rank: Driver risk | B48: =VLOOKUP($B$3,data,44,FALSE) -> 256 | C48: =296-B48 -> 40
A49: Ward rank: Driver numbers | B49: =VLOOKUP($B$3,data,46,FALSE) -> 291 | C49: =296-B49 -> 5

Sheet Ward Data (hidden)
A1: Ward Name | B1: Population | C1: Average age | D1: Pop:U16 | E1: Pop:16-25 | F1: Pop:26-35 | G1: Pop:36-45 | H1: Pop:46-55 | I1: Pop:56-65 | J1: Pop:66-75 | K1: Pop:76+ | L1: Cas:Fatal | M1: Cas:Serious | N1: Cas:Slight | O1: Cas:KSI | P1: Cas:All | Q1: Cas Per 1k pop | R1: Cas:Car | S1: Cas:P2W | T1: Cas:Cycle | U1: Cas:Pedestrian | V1: Cas:Other | W1: Cas:U16 | X1: Cas:16-25 | Y1: Cas:26-35 | Z1: Cas:36-45 | AA1: Cas:46-55 | AB1: Cas:56-65 | AC1: Cas:66-75 | AD1: Cas:76+ | AE1: Driver:All 16+ | AF1: Driver per 1k pop | AG1: Driver:Car | AH1: Driver:P2W | AI1: Driver:Other motorised | AJ1: Driver:16-25 | AK1: Driver:26-35 | AL1: Driver:36-45 | AM1: Driver:46-55 | AN1: Driver:56-65 | AO1: Driver:66-75 | AP1: Driver:76+ | AQ1: Cas risk rank | AR1: Driver risk rank | AS1: Cas volume rank | AT1: Driver volume rank
A2: Colchester:Shrub End | B2: 11810 | C2: 32.10203218 | D2: 3142 | E2: 1631 | F2: 2265 | G2: 1716 | H2: 1260 | I2: 774 | J2: 589 | K2: 433 | L2: 0 | M2: 24 | N2: 157 | O2: 24 | P2: 181 | Q2: 3.065198984 | R2: 116 | S2: 29 | T2: 18 | U2: 12 | V2: 6 | W2: 7 | X2: 72 | Y2: 38 | Z2: 20 | AA2: 24 | AB2: 11 | AC2: 5 | AD2: 3 | AE2: 202 | AF2: 3.420829805 | AG2: 162 | AH2: 29 | AI2: 11 | AJ2: 64 | AK2: 47 | AL2: 37 | AM2: 33 | AN2: 13 | AO2: 5 | AP2: 2 | AQ2: 289 | AR2: 256 | AS2: 292 | AT2: 291
A3: Basildon:Fryerns | B3: 14142 | C3: 37.63017961 | D3: 3255 | E3: 1764 | F3: 2103 | G3: 1712 | H3: 1815 | I3: 1339 | J3: 917 | K3: 1237 | L3: 0 | M3: 27 | N3: 167 | O3: 27 | P3: 194 | Q3: 2.743600622 | R3: 120 | S3: 31 | T3: 10 | U3: 28 | V3: 5 | W3: 28 | X3: 51 | Y3: 40 | Z3: 28 | AA3: 27 | AB3: 9 | AC3: 4 | AD3: 3 | AE3: 228 | AF3: 3.224437845 | AG3: 180 | AH3: 34 | AI3: 14 | AJ3: 59 | AK3: 48 | AL3: 39 | AM3: 45 | AN3: 22 | AO3: 6 | AP3: 3 | AQ3: 268 | AR3: 233 | AS3: 296 | AT3: 294
A4: Basildon:Pitsea South East | B4: 12063 | C4: 40.77940811 | D4: 2119 | E4: 1588 | F4: 1502 | G4: 1466 | H4: 1736 | I4: 1589 | J4: 1241 | K4: 822 | L4: 2 | M4: 12 | N4: 128 | O4: 14 | P4: 142 | Q4: 2.354306557 | R4: 95 | S4: 22 | T4: 8 | U4: 9 | V4: 8 | W4: 12 | X4: 45 | Y4: 26 | Z4: 21 | AA4: 16 | AB4: 11 | AC4: 8 | AD4: 2 | AE4: 210 | AF4: 3.481720965 | AG4: 169 | AH4: 23 | AI4: 18 | AJ4: 54 | AK4: 41 | AL4: 43 | AM4: 30 | AN4: 24 | AO4: 12 | AP4: 4 | AQ4: 208 | AR4: 261 | AS4: 287 | AT4: 292
A5: Basildon:Pitsea North West | B5: 12817 | C5: 36.82094094 | D5: 2831 | E5: 1617 | F5: 1948 | G5: 1633 | H5: 1773 | I5: 1509 | J5: 956 | K5: 550 | L5: 1 | M5: 17 | N5: 173 | O5: 18 | P5: 191 | Q5: 2.980416634 | R5: 132 | S5: 22 | T5: 11 | U5: 19 | V5: 7 | W5: 20 | X5: 52 | Y5: 36 | Z5: 33 | AA5: 26 | AB5: 16 | AC5: 3 | AD5: 1 | AE5: 238 | AF5: 3.713817586 | AG5: 197 | AH5: 23 | AI5: 18 | AJ5: 50 | AK5: 55 | AL5: 44 | AM5: 36 | AN5: 37 | AO5: 10 | AP5: 0 | AQ5: 284 | AR5: 279 | AS5: 294 | AT5: 296
A6: Colchester:Berechurch | B6: 9502 | C6: 36.75773521 | D6: 2007 | E6: 1333 | F6: 1465 | G6: 1255 | H6: 1298 | I6: 986 | J6: 629 | K6: 529 | L6: 1 | M6: 21 | N6: 96 | O6: 22 | P6: 118 | Q6: 2.483687645 | R6: 70 | S6: 17 | T6: 11 | U6: 14 | V6: 6 | W6: 8 | X6: 36 | Y6: 23 | Z6: 21 | AA6: 14 | AB6: 10 | AC6: 2 | AD6: 3 | AE6: 160 | AF6: 3.367712061 | AG6: 134 | AH6: 18 | AI6: 8 | AJ6: 46 | AK6: 34 | AL6: 33 | AM6: 25 | AN6: 16 | AO6: 3 | AP6: 1 | AQ6: 230 | AR6: 252 | AS6: 272 | AT6: 280
A7: Colchester:St Andrew's | B7: 11382 | C7: 32.38859603 | D7: 1993 | E7: 3736 | F7: 1656 | G7: 1066 | H7: 979 | I7: 815 | J7: 714 | K7: 423 | L7: 1 | M7: 21 | N7: 111 | O7: 22 | P7: 133 | Q7: 2.33702337 | R7: 60 | S7: 28 | T7: 15 | U7: 19 | V7: 11 | W7: 10 | X7: 50 | Y7: 22 | Z7: 17 | AA7: 16 | AB7: 8 | AC7: 6 | AD7: 2 | AE7: 150 | AF7: 2.635740643 | AG7: 103 | AH7: 31 | AI7: 16 | AJ7: 46 | AK7: 32 | AL7: 20 | AM7: 23 | AN7: 18 | AO7: 8 | AP7: 2 | AQ7: 203 | AR7: 148 | AS7: 281 | AT7: 274
A8: Basildon:Wickford Park | B8: 10055 | C8: 35.19602188 | D8: 2337 | E8: 1055 | F8: 1666 | G8: 1794 | H8: 1380 | I8: 858 | J8: 624 | K8: 341 | L8: 1 | M8: 10 | N8: 87 | O8: 11 | P8: 98 | Q8: 1.949278966 | R8: 71 | S8: 9 | T8: 8 | U8: 6 | V8: 4 | W8: 9 | X8: 33 | Y8: 23 | Z8: 13 | AA8: 9 | AB8: 3 | AC8: 6 | AD8: 0 | AE8: 159 | AF8: 3.162605669 | AG8: 137 | AH8: 10 | AI8: 12 | AJ8: 45 | AK8: 32 | AL8: 35 | AM8: 23 | AN8: 9 | AO8: 10 | AP8: 0 | AQ8: 137 | AR8: 224 | AS8: 256 | AT8: 278
A9: Basildon:Burstead | B9: 10761 | C9: 44.30842858 | D9: 1814 | E9: 1037 | F9: 1000 | G9: 1406 | H9: 1689 | I9: 1318 | J9: 1347 | K9: 1150 | L9: 1 | M9: 11 | N9: 99 | O9: 12 | P9: 111 | Q9: 2.063005297 | R9: 81 | S9: 7 | T9: 7 | U9: 11 | V9: 5 | W9: 5 | X9: 38 | Y9: 10 | Z9: 12 | AA9: 22 | AB9: 7 | AC9: 5 | AD9: 8 | AE9: 140 | AF9: 2.601988663 | AG9: 125 | AH9: 6 | AI9: 9 | AJ9: 43 | AK9: 12 | AL9: 21 | AM9: 28 | AN9: 17 | AO9: 6 | AP9: 7 | AQ9: 161 | AR9: 141 | AS9: 267 | AT9: 266
A10: Southend-on-Sea:St. Luke's | B10: 11356 | C10: 37.75739697 | D10: 2402 | E10: 1400 | F10: 1633 | G10: 1572 | H10: 1683 | I10: 1121 | J10: 846 | K10: 699 | L10: 1 | M10: 27 | N10: 158 | O10: 28 | P10: 186 | Q10: 3.275801338 | R10: 112 | S10: 32 | T10: 23 | U10: 16 | V10: 3 | W10: 24 | X10: 48 | Y10: 31 | Z10: 33 | AA10: 25 | AB10: 15 | AC10: 2 | AD10: 4 | AE10: 215 | AF10: 3.786544558 | AG10: 162 | AH10: 32 | AI10: 21 | AJ10: 42 | AK10: 53 | AL10: 50 | AM10: 34 | AN10: 22 | AO10: 2 | AP10: 8 | AQ10: 290 | AR10: 282 | AS10: 293 | AT10: 293
A11: Basildon:Nethermayne | B11: 12369 | C11: 39.41054249 | D11: 2322 | E11: 1646 | F11: 1786 | G11: 1541 | H11: 1767 | I11: 1292 | J11: 989 | K11: 1026 | L11: 1 | M11: 12 | N11: 104 | O11: 13 | P11: 117 | Q11: 1.89182634 | R11: 72 | S11: 17 | T11: 7 | U11: 12 | V11: 9 | W11: 7 | X11: 27 | Y11: 20 | Z11: 31 | AA11: 19 | AB11: 7 | AC11: 2 | AD11: 2 | AE11: 172 | AF11: 2.781146414 | AG11: 141 | AH11: 15 | AI11: 16 | AJ11: 42 | AK11: 30 | AL11: 41 | AM11: 29 | AN11: 15 | AO11: 6 | AP11: 5 | AQ11: 124 | AR11: 175 | AS11: 271 | AT11: 285
A12: Thurrock:Chadwell St Mary | B12: 10091 | C12: 39.45753642 | D12: 2192 | E12: 1268 | F12: 1155 | G12: 1262 | H12: 1390 | I12: 1032 | J12: 895 | K12: 897 | L12: 1 | M12: 12 | N12: 96 | O12: 13 | P12: 109 | Q12: 2.160340898 | R12: 76 | S12: 8 | T12: 7 | U12: 12 | V12: 6 | W12: 15 | X12: 33 | Y12: 16 | Z12: 15 | AA12: 13 | AB12: 9 | AC12: 4 | AD12: 3 | AE12: 149 | AF12: 2.953126548 | AG12: 129 | AH12: 8 | AI12: 12 | AJ12: 42 | AK12: 29 | AL12: 29 | AM12: 21 | AN12: 12 | AO12: 9 | AP12: 3 | AQ12: 175 | AR12: 199 | AS12: 266 | AT12: 273
A13: Castle Point:Canvey Island Winter Gardens | B13: 7324 | C13: 36.45630803 | D13: 1557 | E13: 1160 | F13: 894 | G13: 955 | H13: 1097 | I13: 889 | J13: 520 | K13: 252 | L13: 0 | M13: 19 | N13: 106 | O13: 19 | P13: 125 | Q13: 3.413435281 | R13: 78 | S13: 17 | T13: 9 | U13: 12 | V13: 9 | W13: 12 | X13: 38 | Y13: 13 | Z13: 20 | AA13: 25 | AB13: 9 | AC13: 2 | AD13: 4 | AE13: 142 | AF13: 3.87766248 | AG13: 112 | AH13: 17 | AI13: 13 | AJ13: 42 | AK13: 20 | AL13: 32 | AM13: 30 | AN13: 10 | AO13: 2 | AP13: 2 | AQ13: 293 | AR13: 286 | AS13: 275 | AT13: 270
A14: Basildon:Lee Chapel North | B14: 14145 | C14: 34.56493461 | D14: 3594 | E14: 1943 | F14: 2048 | G14: 2014 | H14: 1815 | I14: 1138 | J14: 912 | K14: 681 | L14: 0 | M14: 23 | N14: 170 | O14: 23 | P14: 193 | Q14: 2.728879463 | R14: 127 | S14: 23 | T14: 13 | U14: 17 | V14: 13 | W14: 28 | X14: 47 | Y14: 42 | Z14: 36 | AA14: 26 | AB14: 6 | AC14: 1 | AD14: 4 | AE14: 233 | AF14: 3.294450336 | AG14: 184 | AH14: 21 | AI14: 28 | AJ14: 41 | AK14: 56 | AL14: 60 | AM14: 44 | AN14: 12 | AO14: 8 | AP14: 4 | AQ14: 265 | AR14: 243 | AS14: 295 | AT14: 295
A15: Southend-on-Sea:Eastwood Park | B15: 9504 | C15: 45.04135101 | D15: 1538 | E15: 919 | F15: 953 | G15: 1157 | H15: 1356 | I15: 1210 | J15: 1284 | K15: 1087 | L15: 1 | M15: 14 | N15: 105 | O15: 15 | P15: 120 | Q15: 2.525252525 | R15: 88 | S15: 16 | T15: 6 | U15: 5 | V15: 5 | W15: 7 | X15: 33 | Y15: 15 | Z15: 16 | AA15: 15 | AB15: 13 | AC15: 13 | AD15: 8 | AE15: 173 | AF15: 3.640572391 | AG15: 147 | AH15: 16 | AI15: 10 | AJ15: 41 | AK15: 23 | AL15: 29 | AM15: 28 | AN15: 24 | AO15: 10 | AP15: 11 | AQ15: 236 | AR15: 275 | AS15: 274 | AT15: 286
A16: Basildon:Laindon Park | B16: 11924 | C16: 39.67242536 | D16: 2292 | E16: 1464 | F16: 1741 | G16: 1509 | H16: 1563 | I16: 1356 | J16: 1089 | K16: 910 | L16: 2 | M16: 15 | N16: 123 | O16: 17 | P16: 140 | Q16: 2.3482053 | R16: 92 | S16: 22 | T16: 4 | U16: 13 | V16: 9 | W16: 12 | X16: 47 | Y16: 28 | Z16: 22 | AA16: 14 | AB16: 6 | AC16: 2 | AD16: 7 | AE16: 165 | AF16: 2.767527675 | AG16: 127 | AH16: 24 | AI16: 14 | AJ16: 41 | AK16: 39 | AL16: 30 | AM16: 27 | AN16: 12 | AO16: 6 | AP16: 6 | AQ16: 207 | AR16: 171 | AS16: 285 | AT16: 281
A17: Basildon:Vange | B17: 10323 | C17: 35.14579095 | D17: 2515 | E17: 1504 | F17: 1504 | G17: 1324 | H17: 1354 | I17: 923 | J17: 680 | K17: 519 | L17: 1 | M17: 24 | N17: 113 | O17: 25 | P17: 138 | Q17: 2.673641383 | R17: 77 | S17: 24 | T17: 8 | U17: 20 | V17: 9 | W17: 16 | X17: 41 | Y17: 27 | Z17: 15 | AA17: 14 | AB17: 9 | AC17: 7 | AD17: 8 | AE17: 154 | AF17: 2.98362879 | AG17: 118 | AH17: 23 | AI17: 13 | AJ17: 40 | AK17: 42 | AL17: 21 | AM17: 21 | AN17: 17 | AO17: 4 | AP17: 7 | AQ17: 258 | AR17: 204 | AS17: 283 | AT17: 276
A18: Southend-on-Sea:Victoria | B18: 11427 | C18: 36.18648814 | D18: 2547 | E18: 1499 | F18: 1802 | G18: 1685 | H18: 1517 | I18: 1008 | J18: 716 | K18: 653 | L18: 0 | M18: 12 | N18: 133 | O18: 12 | P18: 145 | Q18: 2.537848954 | R18: 80 | S18: 15 | T18: 15 | U18: 26 | V18: 9 | W18: 12 | X18: 36 | Y18: 32 | Z18: 30 | AA18: 23 | AB18: 4 | AC18: 3 | AD18: 2 | AE18: 189 | AF18: 3.307954844 | AG18: 152 | AH18: 17 | AI18: 20 | AJ18: 38 | AK18: 54 | AL18: 49 | AM18: 32 | AN18: 9 | AO18: 2 | AP18: 2 | AQ18: 237 | AR18: 247 | AS18: 288 | AT18: 289
A19: Rochford:Rochford | B19: 7872 | C19: 40.28531504 | D19: 1530 | E19: 1018 | F19: 925 | G19: 1049 | H19: 1074 | I19: 888 | J19: 693 | K19: 695 | L19: 2 | M19: 20 | N19: 98 | O19: 22 | P19: 120 | Q19: 3.048780488 | R19: 63 | S19: 21 | T19: 16 | U19: 15 | V19: 5 | W19: 11 | X19: 37 | Y19: 13 | Z19: 21 | AA19: 14 | AB19: 8 | AC19: 7 | AD19: 3 | AE19: 139 | AF19: 3.531504065 | AG19: 111 | AH19: 20 | AI19: 8 | AJ19: 38 | AK19: 23 | AL19: 25 | AM19: 24 | AN19: 11 | AO19: 7 | AP19: 4 | AQ19: 287 | AR19: 267 | AS19: 273 | AT19: 265
A20: Chelmsford:South Woodham-Chetwood and Collingwood | B20: 8374 | C20: 39.2347743 | D20: 1537 | E20: 1083 | F20: 1093 | G20: 1067 | H20: 1390 | I20: 1239 | J20: 558 | K20: 407 | L20: 2 | M20: 12 | N20: 66 | O20: 14 | P20: 80 | Q20: 1.910675902 | R20: 59 | S20: 8 | T20: 3 | U20: 4 | V20: 6 | W20: 3 | X20: 30 | Y20: 11 | Z20: 13 | AA20: 11 | AB20: 6 | AC20: 3 | AD20: 2 | AE20: 124 | AF20: 2.961547647 | AG20: 108 | AH20: 8 | AI20: 8 | AJ20: 37 | AK20: 19 | AL20: 26 | AM20: 25 | AN20: 9 | AO20: 3 | AP20: 3 | AQ20: 125 | AR20: 201 | AS20: 221 | AT20: 253
A21: Chelmsford:Rettendon and Runwell | B21: 5327 | C21: 46.9525061 | D21: 709 | E21: 560 | F21: 457 | G21: 603 | H21: 805 | I21: 781 | J21: 806 | K21: 606 | L21: 0 | M21: 7 | N21: 52 | O21: 7 | P21: 59 | Q21: 2.215130467 | R21: 44 | S21: 12 | T21: 0 | U21: 3 | V21: 0 | W21: 4 | X21: 28 | Y21: 1 | Z21: 6 | AA21: 8 | AB21: 5 | AC21: 5 | AD21: 1 | AE21: 94 | AF21: 3.529190914 | AG21: 72 | AH21: 12 | AI21: 10 | AJ21: 37 | AK21: 4 | AL21: 14 | AM21: 17 | AN21: 6 | AO21: 8 | AP21: 3 | AQ21: 182 | AR21: 265 | AS21: 160 | AT21: 203
A22: Castle Point:Appleton | B22: 6775 | C22: 43.74376384 | D22: 1116 | E22: 820 | F22: 557 | G22: 872 | H22: 1030 | I22: 881 | J22: 877 | K22: 622 | L22: 0 | M22: 8 | N22: 81 | O22: 8 | P22: 89 | Q22: 2.627306273 | R22: 70 | S22: 5 | T22: 1 | U22: 8 | V22: 5 | W22: 6 | X22: 22 | Y22: 16 | Z22: 18 | AA22: 9 | AB22: 6 | AC22: 5 | AD22: 6 | AE22: 136 | AF22: 4.014760148 | AG22: 120 | AH22: 6 | AI22: 10 | AJ22: 36 | AK22: 20 | AL22: 29 | AM22: 15 | AN22: 14 | AO22: 10 | AP22: 7 | AQ22: 255 | AR22: 288 | AS22: 241 | AT22: 261
A23: Castle Point:Canvey Island Central | B23: 6724 | C23: 42.89009518 | D23: 1227 | E23: 800 | F23: 661 | G23: 752 | H23: 908 | I23: 900 | J23: 859 | K23: 617 | L23: 1 | M23: 14 | N23: 86 | O23: 15 | P23: 101 | Q23: 3.004164188 | R23: 66 | S23: 10 | T23: 12 | U23: 7 | V23: 6 | W23: 11 | X23: 29 | Y23: 24 | Z23: 13 | AA23: 15 | AB23: 6 | AC23: 0 | AD23: 2 | AE23: 120 | AF23: 3.569303986 | AG23: 98 | AH23: 10 | AI23: 12 | AJ23: 36 | AK23: 21 | AL23: 16 | AM23: 26 | AN23: 13 | AO23: 5 | AP23: 2 | AQ23: 286 | AR23: 271 | AS23: 261 | AT23: 248
A24: Southend-on-Sea:Shoeburyness | B24: 11748 | C24: 38.90764385 | D24: 2362 | E24: 1478 | F24: 1484 | G24: 1604 | H24: 1716 | I24: 1288 | J24: 1165 | K24: 651 | L24: 0 | M24: 15 | N24: 125 | O24: 15 | P24: 140 | Q24: 2.383384406 | R24: 85 | S24: 21 | T24: 17 | U24: 10 | V24: 7 | W24: 13 | X24: 30 | Y24: 21 | Z24: 30 | AA24: 22 | AB24: 16 | AC24: 3 | AD24: 1 | AE24: 180 | AF24: 3.064351379 | AG24: 142 | AH24: 21 | AI24: 17 | AJ24: 35 | AK24: 30 | AL24: 45 | AM24: 34 | AN24: 21 | AO24: 8 | AP24: 1 | AQ24: 215 | AR24: 211 | AS24: 286 | AT24: 287
A25: Castle Point:Canvey Island East | B25: 6305 | C25: 44.12704203 | D25: 1007 | E25: 684 | F25: 680 | G25: 706 | H25: 898 | I25: 857 | J25: 927 | K25: 546 | L25: 1 | M25: 6 | N25: 74 | O25: 7 | P25: 81 | Q25: 2.569389374 | R25: 55 | S25: 5 | T25: 7 | U25: 9 | V25: 5 | W25: 4 | X25: 25 | Y25: 15 | Z25: 8 | AA25: 11 | AB25: 3 | AC25: 8 | AD25: 4 | AE25: 117 | AF25: 3.711340206 | AG25: 101 | AH25: 4 | AI25: 12 | AJ25: 34 | AK25: 22 | AL25: 16 | AM25: 14 | AN25: 12 | AO25: 11 | AP25: 7 | AQ25: 245 | AR25: 278 | AS25: 225 | AT25: 243
A26: Southend-on-Sea:Westborough | B26: 11026 | C26: 34.56656993 | D26: 2527 | E26: 1366 | F26: 1995 | G26: 1714 | H26: 1499 | I26: 945 | J26: 594 | K26: 386 | L26: 0 | M26: 16 | N26: 122 | O26: 16 | P26: 138 | Q26: 2.503174315 | R26: 82 | S26: 16 | T26: 21 | U26: 17 | V26: 2 | W26: 13 | X26: 35 | Y26: 30 | Z26: 26 | AA26: 16 | AB26: 12 | AC26: 5 | AD26: 0 | AE26: 168 | AF26: 3.047342645 | AG26: 142 | AH26: 17 | AI26: 9 | AJ26: 33 | AK26: 43 | AL26: 34 | AM26: 29 | AN26: 13 | AO26: 9 | AP26: 0 | AQ26: 234 | AR26: 209 | AS26: 284 | AT26: 283
A27: Chelmsford:St Andrews | B27: 9323 | C27: 39.15263327 | D27: 2002 | E27: 1072 | F27: 1203 | G27: 1237 | H27: 1260 | I27: 1084 | J27: 747 | K27: 718 | L27: 2 | M27: 19 | N27: 71 | O27: 21 | P27: 92 | Q27: 1.973613644 | R27: 51 | S27: 20 | T27: 11 | U27: 7 | V27: 3 | W27: 6 | X27: 29 | Y27: 15 | Z27: 17 | AA27: 13 | AB27: 8 | AC27: 1 | AD27: 2 | AE27: 123 | AF27: 2.638635632 | AG27: 91 | AH27: 20 | AI27: 12 | AJ27: 33 | AK27: 23 | AL27: 25 | AM27: 23 | AN27: 8 | AO27: 4 | AP27: 4 | AQ27: 144 | AR27: 150 | AS27: 246 | AT27: 252
A28: Rochford:Hullbridge | B28: 6497 | C28: 48.20255503 | D28: 778 | E28: 729 | F28: 433 | G28: 686 | H28: 963 | I28: 1039 | J28: 1178 | K28: 691 | L28: 2 | M28: 12 | N28: 78 | O28: 14 | P28: 92 | Q28: 2.832076343 | R28: 64 | S28: 17 | T28: 3 | U28: 5 | V28: 3 | W28: 6 | X28: 33 | Y28: 5 | Z28: 12 | AA28: 17 | AB28: 7 | AC28: 6 | AD28: 6 | AE28: 119 | AF28: 3.663229183 | AG28: 90 | AH28: 17 | AI28: 12 | AJ28: 33 | AK28: 11 | AL28: 16 | AM28: 26 | AN28: 17 | AO28: 9 | AP28: 3 | AQ28: 273 | AR28: 277 | AS28: 247 | AT28: 246
A29: Braintree:Braintree South | B29: 7959 | C29: 38.50345521 | D29: 1649 | E29: 917 | F29: 1174 | G29: 1116 | H29: 1037 | I29: 843 | J29: 699 | K29: 524 | L29: 1 | M29: 13 | N29: 75 | O29: 14 | P29: 89 | Q29: 2.236461867 | R29: 70 | S29: 7 | T29: 1 | U29: 6 | V29: 5 | W29: 2 | X29: 32 | Y29: 17 | Z29: 12 | AA29: 7 | AB29: 5 | AC29: 7 | AD29: 6 | AE29: 118 | AF29: 2.965196633 | AG29: 98 | AH29: 7 | AI29: 13 | AJ29: 33 | AK29: 25 | AL29: 21 | AM29: 16 | AN29: 10 | AO29: 7 | AP29: 3 | AQ29: 188 | AR29: 202 | AS29: 240 | AT29: 245
A30: Thurrock:East Tilbury | B30: 6466 | C30: 37.24110733 | D30: 1372 | E30: 827 | F30: 895 | G30: 880 | H30: 955 | I30: 790 | J30: 505 | K30: 242 | L30: 0 | M30: 17 | N30: 77 | O30: 17 | P30: 94 | Q30: 2.907516239 | R30: 72 | S30: 12 | T30: 4 | U30: 4 | V30: 2 | W30: 14 | X30: 36 | Y30: 13 | Z30: 17 | AA30: 7 | AB30: 6 | AC30: 1 | AD30: 0 | AE30: 107 | AF30: 3.309619548 | AG30: 85 | AH30: 12 | AI30: 10 | AJ30: 33 | AK30: 29 | AL30: 19 | AM30: 12 | AN30: 10 | AO30: 2 | AP30: 0 | AQ30: 280 | AR30: 248 | AS30: 250 | AT30: 232
A31: Braintree:Bradwell, Silver End and Rivenhall | B31: 5194 | C31: 39.98864074 | D31: 1047 | E31: 565 | F31: 666 | G31: 653 | H31: 758 | I31: 684 | J31: 454 | K31: 367 | L31: 0 | M31: 5 | N31: 63 | O31: 5 | P31: 68 | Q31: 2.618405853 | R31: 51 | S31: 8 | T31: 3 | U31: 4 | V31: 2 | W31: 5 | X31: 31 | Y31: 10 | Z31: 5 | AA31: 8 | AB31: 5 | AC31: 1 | AD31: 2 | AE31: 91 | AF31: 3.504043127 | AG31: 76 | AH31: 8 | AI31: 7 | AJ31: 33 | AK31: 12 | AL31: 15 | AM31: 12 | AN31: 8 | AO31: 3 | AP31: 4 | AQ31: 251 | AR31: 264 | AS31: 188 | AT31: 193
A32: Basildon:Wickford North | B32: 12778 | C32: 42.37681953 | D32: 2279 | E32: 1424 | F32: 1379 | G32: 1709 | H32: 1871 | I32: 1522 | J32: 1393 | K32: 1201 | L32: 0 | M32: 13 | N32: 139 | O32: 13 | P32: 152 | Q32: 2.379089059 | R32: 114 | S32: 14 | T32: 1 | U32: 17 | V32: 6 | W32: 8 | X32: 30 | Y32: 33 | Z32: 23 | AA32: 19 | AB32: 17 | AC32: 12 | AD32: 9 | AE32: 190 | AF32: 2.973861324 | AG32: 158 | AH32: 14 | AI32: 18 | AJ32: 32 | AK32: 41 | AL32: 43 | AM32: 30 | AN32: 22 | AO32: 8 | AP32: 13 | AQ32: 214 | AR32: 203 | AS32: 291 | AT32: 290
A33: Colchester:New Town | B33: 11444 | C33: 32.47221251 | D33: 2178 | E33: 2188 | F33: 2709 | G33: 1664 | H33: 1191 | I33: 735 | J33: 465 | K33: 314 | L33: 1 | M33: 26 | N33: 123 | O33: 27 | P33: 150 | Q33: 2.621461028 | R33: 81 | S33: 23 | T33: 20 | U33: 21 | V33: 5 | W33: 7 | X33: 41 | Y33: 42 | Z33: 34 | AA33: 17 | AB33: 5 | AC33: 0 | AD33: 3 | AE33: 168 | AF33: 2.936036351 | AG33: 131 | AH33: 24 | AI33: 13 | AJ33: 32 | AK33: 56 | AL33: 44 | AM33: 18 | AN33: 12 | AO33: 2 | AP33: 2 | AQ33: 252 | AR33: 197 | AS33: 289 | AT33: 284
A34: Southend-on-Sea:St Laurence | B34: 9915 | C34: 43.1674231 | D34: 1742 | E34: 1005 | F34: 1050 | G34: 1222 | H34: 1537 | I34: 1283 | J34: 1156 | K34: 920 | L34: 0 | M34: 19 | N34: 111 | O34: 19 | P34: 130 | Q34: 2.62228946 | R34: 85 | S34: 8 | T34: 10 | U34: 16 | V34: 11 | W34: 14 | X34: 22 | Y34: 27 | Z34: 23 | AA34: 15 | AB34: 9 | AC34: 8 | AD34: 7 | AE34: 159 | AF34: 3.207261725 | AG34: 136 | AH34: 8 | AI34: 15 | AJ34: 32 | AK34: 36 | AL34: 29 | AM34: 26 | AN34: 15 | AO34: 6 | AP34: 9 | AQ34: 253 | AR34: 229 | AS34: 279 | AT34: 279
A35: Colchester:Mile End | B35: 12093 | C35: 34.36285454 | D35: 2683 | E35: 1394 | F35: 2532 | G35: 2037 | H35: 1481 | I35: 897 | J35: 607 | K35: 462 | L35: 0 | M35: 11 | N35: 98 | O35: 11 | P35: 109 | Q35: 1.802695774 | R35: 76 | S35: 10 | T35: 8 | U35: 11 | V35: 4 | W35: 12 | X35: 27 | Y35: 24 | Z35: 25 | AA35: 11 | AB35: 2 | AC35: 5 | AD35: 1 | AE35: 142 | AF35: 2.348466055 | AG35: 124 | AH35: 10 | AI35: 8 | AJ35: 32 | AK35: 37 | AL35: 41 | AM35: 14 | AN35: 2 | AO35: 6 | AP35: 1 | AQ35: 104 | AR35: 96 | AS35: 265 | AT35: 269
A36: Chelmsford:Chelmer Village and Beaulieu Park | B36: 11442 | C36: 35.54771893 | D36: 2588 | E36: 1269 | F36: 1650 | G36: 2159 | H36: 1768 | I36: 1078 | J36: 558 | K36: 372 | L36: 0 | M36: 17 | N36: 82 | O36: 17 | P36: 99 | Q36: 1.730466702 | R36: 51 | S36: 17 | T36: 17 | U36: 11 | V36: 3 | W36: 6 | X36: 29 | Y36: 19 | Z36: 21 | AA36: 10 | AB36: 6 | AC36: 3 | AD36: 2 | AE36: 122 | AF36: 2.132494319 | AG36: 94 | AH36: 18 | AI36: 10 | AJ36: 32 | AK36: 29 | AL36: 23 | AM36: 17 | AN36: 9 | AO36: 5 | AP36: 3 | AQ36: 91 | AR36: 74 | AS36: 257 | AT36: 249
A37: Southend-on-Sea:Blenheim Park | B37: 10755 | C37: 41.21478382 | D37: 2114 | E37: 1168 | F37: 1200 | G37: 1480 | H37: 1518 | I37: 1262 | J37: 1050 | K37: 963 | L37: 0 | M37: 12 | N37: 118 | O37: 12 | P37: 130 | Q37: 2.417480242 | R37: 69 | S37: 20 | T37: 19 | U37: 16 | V37: 6 | W37: 14 | X37: 32 | Y37: 17 | Z37: 17 | AA37: 22 | AB37: 13 | AC37: 6 | AD37: 7 | AE37: 147 | AF37: 2.733612273 | AG37: 113 | AH37: 20 | AI37: 14 | AJ37: 31 | AK37: 22 | AL37: 22 | AM37: 35 | AN37: 12 | AO37: 13 | AP37: 8 | AQ37: 219 | AR37: 167 | AS37: 278 | AT37: 272
A38: Southend-on-Sea:Southchurch | B38: 10010 | C38: 42.28941059 | D38: 1978 | E38: 1048 | F38: 1077 | G38: 1240 | H38: 1374 | I38: 1065 | J38: 1147 | K38: 1081 | L38: 1 | M38: 15 | N38: 85 | O38: 16 | P38: 101 | Q38: 2.017982018 | R38: 46 | S38: 17 | T38: 23 | U38: 12 | V38: 3 | W38: 8 | X38: 28 | Y38: 15 | Z38: 18 | AA38: 15 | AB38: 7 | AC38: 3 | AD38: 5 | AE38: 138 | AF38: 2.757242757 | AG38: 110 | AH38: 20 | AI38: 8 | AJ38: 31 | AK38: 18 | AL38: 26 | AM38: 22 | AN38: 12 | AO38: 13 | AP38: 12 | AQ38: 152 | AR38: 170 | AS38: 260 | AT38: 264
A39: Braintree:Braintree East | B39: 7683 | C39: 35.78927502 | D39: 1762 | E39: 985 | F39: 1125 | G39: 1220 | H39: 1078 | I39: 638 | J39: 496 | K39: 379 | L39: 2 | M39: 16 | N39: 86 | O39: 18 | P39: 104 | Q39: 2.707275804 | R39: 71 | S39: 14 | T39: 12 | U39: 4 | V39: 3 | W39: 12 | X39: 27 | Y39: 18 | Z39: 26 | AA39: 10 | AB39: 8 | AC39: 1 | AD39: 2 | AE39: 125 | AF39: 3.253937264 | AG39: 100 | AH39: 15 | AI39: 10 | AJ39: 31 | AK39: 21 | AL39: 36 | AM39: 15 | AN39: 13 | AO39: 2 | AP39: 1 | AQ39: 262 | AR39: 238 | AS39: 263 | AT39: 257
A40: Colchester:St Anne's | B40: 8959 | C40: 39.57350151 | D40: 1612 | E40: 1308 | F40: 1256 | G40: 1089 | H40: 1256 | I40: 998 | J40: 792 | K40: 648 | L40: 2 | M40: 15 | N40: 87 | O40: 17 | P40: 104 | Q40: 2.321687688 | R40: 52 | S40: 20 | T40: 16 | U40: 13 | V40: 3 | W40: 5 | X40: 38 | Y40: 18 | Z40: 15 | AA40: 14 | AB40: 5 | AC40: 7 | AD40: 2 | AE40: 125 | AF40: 2.79049001 | AG40: 90 | AH40: 22 | AI40: 13 | AJ40: 31 | AK40: 22 | AL40: 26 | AM40: 23 | AN40: 11 | AO40: 6 | AP40: 4 | AQ40: 201 | AR40: 176 | AS40: 262 | AT40: 256
A41: Basildon:Billericay East | B41: 12149 | C41: 41.59099514 | D41: 2278 | E41: 1280 | F41: 1317 | G41: 1733 | H41: 1836 | I41: 1366 | J41: 1327 | K41: 1012 | L41: 0 | M41: 8 | N41: 89 | O41: 8 | P41: 97 | Q41: 1.596839246 | R41: 71 | S41: 9 | T41: 3 | U41: 12 | V41: 2 | W41: 6 | X41: 27 | Y41: 11 | Z41: 17 | AA41: 15 | AB41: 9 | AC41: 3 | AD41: 8 | AE41: 120 | AF41: 1.975471232 | AG41: 107 | AH41: 9 | AI41: 4 | AJ41: 31 | AK41: 17 | AL41: 16 | AM41: 23 | AN41: 15 | AO41: 6 | AP41: 9 | AQ41: 71 | AR41: 53 | AS41: 253 | AT41: 247
A42: Colchester:Stanway | B42: 8601 | C42: 42.22415998 | D42: 1507 | E42: 1042 | F42: 951 | G42: 1156 | H42: 1207 | I42: 1013 | J42: 887 | K42: 838 | L42: 0 | M42: 20 | N42: 85 | O42: 20 | P42: 105 | Q42: 2.441576561 | R42: 67 | S42: 16 | T42: 14 | U42: 8 | V42: 0 | W42: 5 | X42: 33 | Y42: 17 | Z42: 18 | AA42: 18 | AB42: 5 | AC42: 5 | AD42: 3 | AE42: 107 | AF42: 2.488082781 | AG42: 82 | AH42: 16 | AI42: 9 | AJ42: 31 | AK42: 11 | AL42: 18 | AM42: 25 | AN42: 9 | AO42: 5 | AP42: 5 | AQ42: 221 | AR42: 127 | AS42: 264 | AT42: 233
A43: Braintree:Bocking Blackwater | B43: 8276 | C43: 39.49238763 | D43: 1659 | E43: 932 | F43: 1010 | G43: 1205 | H43: 1253 | I43: 1014 | J43: 636 | K43: 567 | L43: 1 | M43: 11 | N43: 69 | O43: 12 | P43: 81 | Q43: 1.957467376 | R43: 49 | S43: 11 | T43: 9 | U43: 9 | V43: 3 | W43: 8 | X43: 22 | Y43: 9 | Z43: 15 | AA43: 14 | AB43: 7 | AC43: 2 | AD43: 4 | AE43: 106 | AF43: 2.561623973 | AG43: 80 | AH43: 12 | AI43: 14 | AJ43: 31 | AK43: 16 | AL43: 19 | AM43: 19 | AN43: 12 | AO43: 2 | AP43: 5 | AQ43: 142 | AR43: 134 | AS43: 223 | AT43: 229
A44: Rochford:Ashingdon and Canewdon | B44: 4595 | C44: 43.67638738 | D44: 772 | E44: 498 | F44: 389 | G44: 576 | H44: 788 | I44: 612 | J44: 556 | K44: 404 | L44: 0 | M44: 4 | N44: 59 | O44: 4 | P44: 63 | Q44: 2.74211099 | R44: 49 | S44: 8 | T44: 1 | U44: 2 | V44: 3 | W44: 0 | X44: 22 | Y44: 14 | Z44: 8 | AA44: 8 | AB44: 7 | AC44: 3 | AD44: 1 | AE44: 101 | AF44: 4.396082699 | AG44: 82 | AH44: 9 | AI44: 10 | AJ44: 31 | AK44: 18 | AL44: 10 | AM44: 20 | AN44: 12 | AO44: 4 | AP44: 4 | AQ44: 267 | AR44: 293 | AS44: 171 | AT44: 215
A45: Southend-on-Sea:West Shoebury | B45: 10479 | C45: 40.07128543 | D45: 2247 | E45: 1281 | F45: 1075 | G45: 1256 | H45: 1553 | I45: 1164 | J45: 1050 | K45: 853 | L45: 2 | M45: 22 | N45: 106 | O45: 24 | P45: 130 | Q45: 2.481152782 | R45: 78 | S45: 13 | T45: 16 | U45: 16 | V45: 7 | W45: 17 | X45: 28 | Y45: 20 | Z45: 22 | AA45: 19 | AB45: 12 | AC45: 7 | AD45: 3 | AE45: 182 | AF45: 3.473613894 | AG45: 150 | AH45: 17 | AI45: 15 | AJ45: 30 | AK45: 37 | AL45: 33 | AM45: 34 | AN45: 22 | AO45: 13 | AP45: 6 | AQ45: 229 | AR45: 260 | AS45: 280 | AT45: 288
A46: Thurrock:West Thurrock and South Stifford | B46: 12411 | C46: 30.4852953 | D46: 3257 | E46: 1527 | F46: 2870 | G46: 2088 | H46: 1319 | I46: 798 | J46: 353 | K46: 199 | L46: 1 | M46: 12 | N46: 102 | O46: 13 | P46: 115 | Q46: 1.853194747 | R46: 69 | S46: 19 | T46: 10 | U46: 12 | V46: 5 | W46: 13 | X46: 29 | Y46: 34 | Z46: 20 | AA46: 9 | AB46: 6 | AC46: 1 | AD46: 0 | AE46: 140 | AF46: 2.25606317 | AG46: 109 | AH46: 20 | AI46: 11 | AJ46: 30 | AK46: 42 | AL46: 36 | AM46: 16 | AN46: 10 | AO46: 2 | AP46: 0 | AQ46: 116 | AR46: 87 | AS46: 269 | AT46: 267
A47: Southend-on-Sea:Milton | B47: 11291 | C47: 39.30085909 | D47: 1728 | E47: 1669 | F47: 2111 | G47: 1681 | H47: 1375 | I47: 995 | J47: 743 | K47: 989 | L47: 1 | M47: 15 | N47: 112 | O47: 16 | P47: 128 | Q47: 2.267292534 | R47: 64 | S47: 12 | T47: 19 | U47: 27 | V47: 6 | W47: 12 | X47: 23 | Y47: 24 | Z47: 19 | AA47: 25 | AB47: 7 | AC47: 7 | AD47: 5 | AE47: 136 | AF47: 2.408998317 | AG47: 116 | AH47: 14 | AI47: 6 | AJ47: 30 | AK47: 28 | AL47: 27 | AM47: 26 | AN47: 7 | AO47: 7 | AP47: 5 | AQ47: 192 | AR47: 103 | AS47: 276 | AT47: 262
A48: Castle Point:Canvey Island South | B48: 6505 | C48: 45.38939277 | D48: 965 | E48: 707 | F48: 602 | G48: 734 | H48: 935 | I48: 1019 | J48: 929 | K48: 614 | L48: 0 | M48: 13 | N48: 71 | O48: 13 | P48: 84 | Q48: 2.582628747 | R48: 54 | S48: 15 | T48: 6 | U48: 6 | V48: 3 | W48: 4 | X48: 30 | Y48: 17 | Z48: 11 | AA48: 6 | AB48: 11 | AC48: 3 | AD48: 1 | AE48: 124 | AF48: 3.81245196 | AG48: 99 | AH48: 15 | AI48: 10 | AJ48: 30 | AK48: 22 | AL48: 23 | AM48: 18 | AN48: 16 | AO48: 6 | AP48: 5 | AQ48: 246 | AR48: 283 | AS48: 231 | AT48: 254
A49: Basildon:Wickford Castledon | B49: 7676 | C49: 45.1181605 | D49: 1183 | E49: 808 | F49: 772 | G49: 932 | H49: 1091 | I49: 969 | J49: 1053 | K49: 868 | L49: 0 | M49: 10 | N49: 65 | O49: 10 | P49: 75 | Q49: 1.954142783 | R49: 56 | S49: 8 | T49: 2 | U49: 6 | V49: 3 | W49: 5 | X49: 17 | Y49: 10 | Z49: 6 | AA49: 17 | AB49: 8 | AC49: 4 | AD49: 5 | AE49: 113 | AF49: 2.944241793 | AG49: 96 | AH49: 7 | AI49: 10 | AJ49: 30 | AK49: 12 | AL49: 18 | AM49: 26 | AN49: 11 | AO49: 7 | AP49: 6 | AQ49: 140 | AR49: 198 | AS49: 211 | AT49: 238
A50: Thurrock:Grays Thurrock | B50: 9287 | C50: 38.03413374 | D50: 1932 | E50: 1169 | F50: 1317 | G50: 1342 | H50: 1297 | I50: 943 | J50: 691 | K50: 596 | L50: 0 | M50: 11 | N50: 88 | O50: 11 | P50: 99 | Q50: 2.132012491 | R50: 73 | S50: 8 | T50: 5 | U50: 9 | V50: 4 | W50: 11 | X50: 29 | Y50: 19 | Z50: 22 | AA50: 8 | AB50: 3 | AC50: 2 | AD50: 4 | AE50: 112 | AF50: 2.411973727 | AG50: 92 | AH50: 9 | AI50: 11 | AJ50: 30 | AK50: 27 | AL50: 20 | AM50: 13 | AN50: 7 | AO50: 6 | AP50: 5 | AQ50: 170 | AR50: 105 | AS50: 258 | AT50: 237
A51: Tendring:Rush Green | B51: 4800 | C51: 40.21395833 | D51: 1031 | E51: 670 | F51: 485 | G51: 506 | H51: 589 | I51: 522 | J51: 572 | K51: 425 | L51: 0 | M51: 9 | N51: 70 | O51: 9 | P51: 79 | Q51: 3.291666667 | R51: 52 | S51: 11 | T51: 6 | U51: 10 | V51: 0 | W51: 5 | X51: 35 | Y51: 11 | Z51: 11 | AA51: 8 | AB51: 4 | AC51: 2 | AD51: 2 | AE51: 102 | AF51: 4.25 | AG51: 85 | AH51: 11 | AI51: 6 | AJ51: 30 | AK51: 19 | AL51: 15 | AM51: 17 | AN51: 6 | AO51: 10 | AP51: 1 | AQ51: 292 | AR51: 291 | AS51: 218 | AT51: 219
A52: Chelmsford:Boreham and The Leighs | B52: 6433 | C52: 39.63345251 | D52: 1305 | E52: 725 | F52: 736 | G52: 945 | H52: 949 | I52: 739 | J52: 625 | K52: 409 | L52: 1 | M52: 11 | N52: 64 | O52: 12 | P52: 76 | Q52: 2.362816726 | R52: 44 | S52: 12 | T52: 11 | U52: 5 | V52: 4 | W52: 5 | X52: 26 | Y52: 12 | Z52: 12 | AA52: 11 | AB52: 7 | AC52: 1 | AD52: 1 | AE52: 99 | AF52: 3.077879683 | AG52: 79 | AH52: 12 | AI52: 8 | AJ52: 30 | AK52: 19 | AL52: 16 | AM52: 12 | AN52: 12 | AO52: 4 | AP52: 6 | AQ52: 209 | AR52: 214 | AS52: 212 | AT52: 212
A53: Maldon:Althorne | B53: 4214 | C53: 44.62505933 | D53: 639 | E53: 517 | F53: 309 | G53: 460 | H53: 700 | I53: 680 | J53: 564 | K53: 345 | L53: 1 | M53: 9 | N53: 70 | O53: 10 | P53: 80 | Q53: 3.796867584 | R53: 64 | S53: 2 | T53: 1 | U53: 6 | V53: 7 | W53: 9 | X53: 31 | Y53: 7 | Z53: 10 | AA53: 11 | AB53: 9 | AC53: 1 | AD53: 1 | AE53: 91 | AF53: 4.318936877 | AG53: 79 | AH53: 2 | AI53: 10 | AJ53: 30 | AK53: 9 | AL53: 17 | AM53: 19 | AN53: 6 | AO53: 5 | AP53: 2 | AQ53: 294 | AR53: 292 | AS53: 222 | AT53: 197
A54: Maldon:Tolleshunt D'Arcy | B54: 4179 | C54: 45.44938981 | D54: 625 | E54: 427 | F54: 304 | G54: 508 | H54: 718 | I54: 655 | J54: 600 | K54: 342 | L54: 2 | M54: 5 | N54: 48 | O54: 7 | P54: 55 | Q54: 2.632208662 | R54: 45 | S54: 4 | T54: 1 | U54: 2 | V54: 3 | W54: 4 | X54: 20 | Y54: 6 | Z54: 10 | AA54: 8 | AB54: 2 | AC54: 1 | AD54: 2 | AE54: 79 | AF54: 3.780808806 | AG54: 67 | AH54: 4 | AI54: 8 | AJ54: 30 | AK54: 9 | AL54: 14 | AM54: 11 | AN54: 9 | AO54: 2 | AP54: 2 | AQ54: 256 | AR54: 281 | AS54: 150 | AT54: 172
A55: Basildon:Crouch | B55: 9082 | C55: 39.9303017 | D55: 1744 | E55: 1036 | F55: 1071 | G55: 1292 | H55: 1450 | I55: 1078 | J55: 903 | K55: 508 | L55: 0 | M55: 11 | N55: 85 | O55: 11 | P55: 96 | Q55: 2.11407179 | R55: 71 | S55: 10 | T55: 4 | U55: 9 | V55: 2 | W55: 10 | X55: 23 | Y55: 18 | Z55: 12 | AA55: 11 | AB55: 9 | AC55: 6 | AD55: 0 | AE55: 155 | AF55: 3.413345078 | AG55: 135 | AH55: 10 | AI55: 10 | AJ55: 29 | AK55: 43 | AL55: 26 | AM55: 30 | AN55: 11 | AO55: 9 | AP55: 1 | AQ55: 168 | AR55: 255 | AS55: 252 | AT55: 277
A56: Tendring:Brightlingsea | B56: 8234 | C56: 45.02550401 | D56: 1365 | E56: 843 | F56: 692 | G56: 1012 | H56: 1159 | I56: 1123 | J56: 1165 | K56: 875 | L56: 0 | M56: 14 | N56: 80 | O56: 14 | P56: 94 | Q56: 2.283215934 | R56: 67 | S56: 12 | T56: 3 | U56: 8 | V56: 4 | W56: 3 | X56: 22 | Y56: 17 | Z56: 12 | AA56: 12 | AB56: 14 | AC56: 8 | AD56: 4 | AE56: 124 | AF56: 3.01190187 | AG56: 98 | AH56: 13 | AI56: 13 | AJ56: 29 | AK56: 21 | AL56: 16 | AM56: 20 | AN56: 20 | AO56: 9 | AP56: 5 | AQ56: 194 | AR56: 207 | AS56: 249 | AT56: 255
A57: Braintree:Braintree Central | B57: 8957 | C57: 39.12548844 | D57: 1526 | E57: 1160 | F57: 1573 | G57: 1256 | H57: 1167 | I57: 917 | J57: 747 | K57: 611 | L57: 1 | M57: 15 | N57: 68 | O57: 16 | P57: 84 | Q57: 1.875628 | R57: 54 | S57: 9 | T57: 6 | U57: 11 | V57: 4 | W57: 8 | X57: 24 | Y57: 20 | Z57: 11 | AA57: 5 | AB57: 7 | AC57: 2 | AD57: 3 | AE57: 123 | AF57: 2.746455286 | AG57: 105 | AH57: 10 | AI57: 8 | AJ57: 29 | AK57: 35 | AL57: 21 | AM57: 18 | AN57: 8 | AO57: 4 | AP57: 4 | AQ57: 120 | AR57: 168 | AS57: 230 | AT57: 250
A58: Colchester:Old Heath | B58: 6246 | C58: 38.89305155 | D58: 1132 | E58: 929 | F58: 844 | G58: 832 | H58: 934 | I58: 647 | J58: 486 | K58: 442 | L58: 0 | M58: 9 | N58: 77 | O58: 9 | P58: 86 | Q58: 2.753762408 | R58: 55 | S58: 13 | T58: 8 | U58: 6 | V58: 4 | W58: 3 | X58: 32 | Y58: 12 | Z58: 15 | AA58: 13 | AB58: 6 | AC58: 2 | AD58: 3 | AE58: 117 | AF58: 3.746397695 | AG58: 89 | AH58: 15 | AI58: 13 | AJ58: 29 | AK58: 20 | AL58: 22 | AM58: 22 | AN58: 12 | AO58: 5 | AP58: 2 | AQ58: 269 | AR58: 280 | AS58: 235 | AT58: 244
A59: Rochford:Downhall and Rawreth | B59: 5144 | C59: 40.59564541 | D59: 972 | E59: 607 | F59: 498 | G59: 792 | H59: 802 | I59: 628 | J59: 506 | K59: 339 | L59: 0 | M59: 9 | N59: 64 | O59: 9 | P59: 73 | Q59: 2.838258165 | R59: 44 | S59: 12 | T59: 8 | U59: 6 | V59: 3 | W59: 5 | X59: 23 | Y59: 8 | Z59: 7 | AA59: 15 | AB59: 8 | AC59: 3 | AD59: 3 | AE59: 84 | AF59: 3.265940902 | AG59: 68 | AH59: 10 | AI59: 6 | AJ59: 29 | AK59: 11 | AL59: 16 | AM59: 12 | AN59: 9 | AO59: 3 | AP59: 3 | AQ59: 276 | AR59: 240 | AS59: 206 | AT59: 182
A60: Chelmsford:South Woodham-Elmwood and Woodville | B60: 8153 | C60: 40.50717527 | D60: 1519 | E60: 939 | F60: 1011 | G60: 1085 | H60: 1121 | I60: 1118 | J60: 873 | K60: 487 | L60: 2 | M60: 14 | N60: 75 | O60: 16 | P60: 91 | Q60: 2.232307126 | R60: 69 | S60: 8 | T60: 4 | U60: 2 | V60: 8 | W60: 8 | X60: 16 | Y60: 18 | Z60: 19 | AA60: 7 | AB60: 8 | AC60: 8 | AD60: 3 | AE60: 113 | AF60: 2.771985772 | AG60: 92 | AH60: 8 | AI60: 13 | AJ60: 28 | AK60: 22 | AL60: 23 | AM60: 11 | AN60: 16 | AO60: 9 | AP60: 3 | AQ60: 187 | AR60: 174 | AS60: 244 | AT60: 239
A61: Chelmsford:Springfield North | B61: 9092 | C61: 38.05620326 | D61: 1751 | E61: 1074 | F61: 1384 | G61: 1391 | H61: 1353 | I61: 1106 | J61: 623 | K61: 410 | L61: 0 | M61: 13 | N61: 74 | O61: 13 | P61: 87 | Q61: 1.913770348 | R61: 46 | S61: 14 | T61: 16 | U61: 7 | V61: 4 | W61: 2 | X61: 26 | Y61: 25 | Z61: 15 | AA61: 8 | AB61: 4 | AC61: 5 | AD61: 1 | AE61: 106 | AF61: 2.331720194 | AG61: 81 | AH61: 14 | AI61: 11 | AJ61: 28 | AK61: 27 | AL61: 15 | AM61: 16 | AN61: 8 | AO61: 7 | AP61: 4 | AQ61: 126 | AR61: 94 | AS61: 237 | AT61: 230
A62: Braintree:Hedingham and Maplestead | B62: 6704 | C62: 43.80011933 | D62: 1127 | E62: 699 | F62: 594 | G62: 819 | H62: 1081 | I62: 1006 | J62: 830 | K62: 548 | L62: 1 | M62: 10 | N62: 62 | O62: 11 | P62: 73 | Q62: 2.177804296 | R62: 53 | S62: 9 | T62: 4 | U62: 5 | V62: 2 | W62: 7 | X62: 25 | Y62: 6 | Z62: 9 | AA62: 11 | AB62: 7 | AC62: 4 | AD62: 4 | AE62: 105 | AF62: 3.132458234 | AG62: 88 | AH62: 9 | AI62: 8 | AJ62: 28 | AK62: 10 | AL62: 18 | AM62: 19 | AN62: 12 | AO62: 9 | AP62: 6 | AQ62: 178 | AR62: 222 | AS62: 205 | AT62: 227
A63: Chelmsford:Great Baddow East | B63: 8530 | C63: 43.32309496 | D63: 1488 | E63: 825 | F63: 1031 | G63: 1158 | H63: 1141 | I63: 910 | J63: 1042 | K63: 935 | L63: 0 | M63: 16 | N63: 72 | O63: 16 | P63: 88 | Q63: 2.063305979 | R63: 45 | S63: 14 | T63: 14 | U63: 9 | V63: 6 | W63: 3 | X63: 26 | Y63: 12 | Z63: 20 | AA63: 13 | AB63: 5 | AC63: 5 | AD63: 3 | AE63: 99 | AF63: 2.321219226 | AG63: 76 | AH63: 17 | AI63: 6 | AJ63: 28 | AK63: 15 | AL63: 21 | AM63: 14 | AN63: 9 | AO63: 3 | AP63: 6 | AQ63: 162 | AR63: 92 | AS63: 238 | AT63: 213
A64: Southend-on-Sea:Kursaal | B64: 11600 | C64: 35.4087931 | D64: 2472 | E64: 1747 | F64: 1978 | G64: 1637 | H64: 1506 | I64: 1079 | J64: 653 | K64: 528 | L64: 0 | M64: 13 | N64: 120 | O64: 13 | P64: 133 | Q64: 2.293103448 | R64: 69 | S64: 14 | T64: 14 | U64: 28 | V64: 8 | W64: 9 | X64: 26 | Y64: 37 | Z64: 25 | AA64: 16 | AB64: 10 | AC64: 5 | AD64: 3 | AE64: 153 | AF64: 2.637931034 | AG64: 117 | AH64: 14 | AI64: 22 | AJ64: 27 | AK64: 35 | AL64: 31 | AM64: 30 | AN64: 13 | AO64: 7 | AP64: 5 | AQ64: 197 | AR64: 149 | AS64: 282 | AT64: 275
A65: Southend-on-Sea:Prittlewell | B65: 10303 | C65: 42.21081238 | D65: 1935 | E65: 1159 | F65: 1016 | G65: 1390 | H65: 1464 | I65: 1240 | J65: 1112 | K65: 987 | L65: 0 | M65: 14 | N65: 114 | O65: 14 | P65: 128 | Q65: 2.48471319 | R65: 75 | S65: 13 | T65: 17 | U65: 15 | V65: 8 | W65: 5 | X65: 40 | Y65: 26 | Z65: 15 | AA65: 15 | AB65: 15 | AC65: 3 | AD65: 9 | AE65: 140 | AF65: 2.717655052 | AG65: 112 | AH65: 13 | AI65: 15 | AJ65: 27 | AK65: 31 | AL65: 23 | AM65: 26 | AN65: 13 | AO65: 5 | AP65: 9 | AQ65: 231 | AR65: 162 | AS65: 277 | AT65: 268
A66: Colchester:Castle | B66: 10471 | C66: 38.49670519 | D66: 1651 | E66: 1443 | F66: 2274 | G66: 1533 | H66: 1107 | I66: 887 | J66: 796 | K66: 780 | L66: 1 | M66: 14 | N66: 101 | O66: 15 | P66: 116 | Q66: 2.215643205 | R66: 66 | S66: 12 | T66: 16 | U66: 14 | V66: 8 | W66: 6 | X66: 33 | Y66: 34 | Z66: 12 | AA66: 19 | AB66: 7 | AC66: 1 | AD66: 3 | AE66: 137 | AF66: 2.616751027 | AG66: 107 | AH66: 15 | AI66: 15 | AJ66: 27 | AK66: 42 | AL66: 26 | AM66: 25 | AN66: 8 | AO66: 4 | AP66: 1 | AQ66: 183 | AR66: 147 | AS66: 270 | AT66: 263
A67: Thurrock:Tilbury St Chads | B67: 6203 | C67: 34.76059971 | D67: 1564 | E67: 827 | F67: 821 | G67: 913 | H67: 888 | I67: 599 | J67: 378 | K67: 213 | L67: 1 | M67: 12 | N67: 75 | O67: 13 | P67: 88 | Q67: 2.837336773 | R67: 59 | S67: 7 | T67: 7 | U67: 9 | V67: 6 | W67: 13 | X67: 27 | Y67: 10 | Z67: 13 | AA67: 10 | AB67: 10 | AC67: 2 | AD67: 1 | AE67: 96 | AF67: 3.095276479 | AG67: 79 | AH67: 6 | AI67: 11 | AJ67: 27 | AK67: 21 | AL67: 15 | AM67: 18 | AN67: 10 | AO67: 2 | AP67: 1 | AQ67: 275 | AR67: 217 | AS67: 239 | AT67: 206
A68: Rochford:Hockley Central | B68: 6546 | C68: 44.64604339 | D68: 1069 | E68: 714 | F68: 641 | G68: 771 | H68: 949 | I68: 788 | J68: 827 | K68: 787 | L68: 0 | M68: 7 | N68: 60 | O68: 7 | P68: 67 | Q68: 2.047051635 | R68: 48 | S68: 6 | T68: 3 | U68: 9 | V68: 1 | W68: 5 | X68: 18 | Y68: 13 | Z68: 9 | AA68: 10 | AB68: 4 | AC68: 4 | AD68: 3 | AE68: 92 | AF68: 2.810876871 | AG68: 83 | AH68: 5 | AI68: 4 | AJ68: 27 | AK68: 18 | AL68: 13 | AM68: 14 | AN68: 7 | AO68: 6 | AP68: 4 | AQ68: 154 | AR68: 180 | AS68: 183 | AT68: 198
A69: Thurrock:Orsett | B69: 6080 | C69: 42.31101974 | D69: 1096 | E69: 653 | F69: 556 | G69: 785 | H69: 1054 | I69: 800 | J69: 703 | K69: 433 | L69: 0 | M69: 5 | N69: 61 | O69: 5 | P69: 66 | Q69: 2.171052632 | R69: 59 | S69: 1 | T69: 2 | U69: 2 | V69: 2 | W69: 4 | X69: 22 | Y69: 9 | Z69: 8 | AA69: 11 | AB69: 5 | AC69: 3 | AD69: 3 | AE69: 88 | AF69: 2.894736842 | AG69: 80 | AH69: 1 | AI69: 7 | AJ69: 27 | AK69: 14 | AL69: 17 | AM69: 11 | AN69: 7 | AO69: 3 | AP69: 7 | AQ69: 176 | AR69: 192 | AS69: 181 | AT69: 190
A70: Chelmsford:Trinity | B70: 6646 | C70: 37.87631658 | D70: 1247 | E70: 918 | F70: 1029 | G70: 996 | H70: 920 | I70: 630 | J70: 507 | K70: 399 | L70: 1 | M70: 18 | N70: 50 | O70: 19 | P70: 69 | Q70: 2.076436955 | R70: 35 | S70: 15 | T70: 8 | U70: 9 | V70: 2 | W70: 5 | X70: 28 | Y70: 10 | Z70: 12 | AA70: 11 | AB70: 2 | AC70: 1 | AD70: 0 | AE70: 86 | AF70: 2.588022871 | AG70: 67 | AH70: 14 | AI70: 5 | AJ70: 27 | AK70: 24 | AL70: 12 | AM70: 17 | AN70: 4 | AO70: 1 | AP70: 1 | AQ70: 165 | AR70: 137 | AS70: 191 | AT70: 184
A71: Chelmsford:Moulsham and Central | B71: 10797 | C71: 38.24654997 | D71: 1882 | E71: 1254 | F71: 2210 | G71: 1774 | H71: 1315 | I71: 844 | J71: 687 | K71: 831 | L71: 2 | M71: 18 | N71: 131 | O71: 20 | P71: 151 | Q71: 2.797073261 | R71: 95 | S71: 17 | T71: 15 | U71: 20 | V71: 4 | W71: 8 | X71: 29 | Y71: 43 | Z71: 21 | AA71: 20 | AB71: 13 | AC71: 3 | AD71: 6 | AE71: 166 | AF71: 3.074928221 | AG71: 145 | AH71: 14 | AI71: 7 | AJ71: 26 | AK71: 51 | AL71: 30 | AM71: 23 | AN71: 18 | AO71: 5 | AP71: 3 | AQ71: 272 | AR71: 213 | AS71: 290 | AT71: 282
A72: Southend-on-Sea:Belfairs | B72: 9458 | C72: 46.43011207 | D72: 1495 | E72: 847 | F72: 896 | G72: 1053 | H72: 1334 | I72: 1228 | J72: 1388 | K72: 1217 | L72: 1 | M72: 7 | N72: 90 | O72: 8 | P72: 98 | Q72: 2.072319729 | R72: 58 | S72: 11 | T72: 13 | U72: 11 | V72: 5 | W72: 7 | X72: 28 | Y72: 10 | Z72: 19 | AA72: 15 | AB72: 1 | AC72: 10 | AD72: 5 | AE72: 131 | AF72: 2.770141679 | AG72: 111 | AH72: 10 | AI72: 10 | AJ72: 26 | AK72: 20 | AL72: 26 | AM72: 17 | AN72: 12 | AO72: 15 | AP72: 10 | AQ72: 163 | AR72: 172 | AS72: 255 | AT72: 259
A73: Castle Point:St Peter's | B73: 6425 | C73: 44.5140856 | D73: 1036 | E73: 698 | F73: 600 | G73: 749 | H73: 998 | I73: 824 | J73: 896 | K73: 624 | L73: 0 | M73: 5 | N73: 74 | O73: 5 | P73: 79 | Q73: 2.459143969 | R73: 55 | S73: 12 | T73: 2 | U73: 8 | V73: 2 | W73: 10 | X73: 18 | Y73: 15 | Z73: 13 | AA73: 12 | AB73: 5 | AC73: 5 | AD73: 1 | AE73: 106 | AF73: 3.299610895 | AG73: 85 | AH73: 12 | AI73: 9 | AJ73: 26 | AK73: 20 | AL73: 21 | AM73: 16 | AN73: 13 | AO73: 6 | AP73: 2 | AQ73: 224 | AR73: 245 | AS73: 217 | AT73: 228
A74: Maldon:Mayland | B74: 4559 | C74: 42.47576223 | D74: 796 | E74: 497 | F74: 419 | G74: 551 | H74: 808 | I74: 661 | J74: 533 | K74: 294 | L74: 0 | M74: 8 | N74: 59 | O74: 8 | P74: 67 | Q74: 2.939241062 | R74: 51 | S74: 8 | T74: 2 | U74: 1 | V74: 5 | W74: 2 | X74: 18 | Y74: 8 | Z74: 11 | AA74: 11 | AB74: 9 | AC74: 7 | AD74: 1 | AE74: 104 | AF74: 4.562404036 | AG74: 89 | AH74: 8 | AI74: 7 | AJ74: 26 | AK74: 17 | AL74: 18 | AM74: 16 | AN74: 16 | AO74: 8 | AP74: 2 | AQ74: 282 | AR74: 295 | AS74: 184 | AT74: 224
A75: Castle Point:St George's | B75: 5913 | C75: 42.72146119 | D75: 1058 | E75: 678 | F75: 586 | G75: 731 | H75: 826 | I75: 758 | J75: 766 | K75: 510 | L75: 0 | M75: 8 | N75: 64 | O75: 8 | P75: 72 | Q75: 2.435312024 | R75: 50 | S75: 10 | T75: 4 | U75: 6 | V75: 2 | W75: 9 | X75: 19 | Y75: 8 | Z75: 11 | AA75: 8 | AB75: 9 | AC75: 5 | AD75: 2 | AE75: 103 | AF75: 3.483849146 | AG75: 85 | AH75: 11 | AI75: 7 | AJ75: 26 | AK75: 20 | AL75: 14 | AM75: 10 | AN75: 21 | AO75: 7 | AP75: 3 | AQ75: 220 | AR75: 262 | AS75: 202 | AT75: 221
A76: Thurrock:Stanford-le-Hope West | B76: 6366 | C76: 39.03298775 | D76: 1211 | E76: 844 | F76: 880 | G76: 822 | H76: 945 | I76: 723 | J76: 518 | K76: 423 | L76: 0 | M76: 8 | N76: 73 | O76: 8 | P76: 81 | Q76: 2.544769086 | R76: 59 | S76: 10 | T76: 5 | U76: 1 | V76: 6 | W76: 5 | X76: 19 | Y76: 19 | Z76: 13 | AA76: 12 | AB76: 5 | AC76: 3 | AD76: 3 | AE76: 98 | AF76: 3.078856425 | AG76: 79 | AH76: 10 | AI76: 9 | AJ76: 26 | AK76: 22 | AL76: 14 | AM76: 19 | AN76: 5 | AO76: 4 | AP76: 2 | AQ76: 238 | AR76: 215 | AS76: 224 | AT76: 210
A77: Castle Point:St James | B77: 6630 | C77: 45.66319759 | D77: 950 | E77: 793 | F77: 645 | G77: 702 | H77: 1017 | I77: 843 | J77: 846 | K77: 834 | L77: 0 | M77: 12 | N77: 73 | O77: 12 | P77: 85 | Q77: 2.564102564 | R77: 51 | S77: 12 | T77: 8 | U77: 13 | V77: 1 | W77: 8 | X77: 26 | Y77: 6 | Z77: 7 | AA77: 14 | AB77: 7 | AC77: 7 | AD77: 7 | AE77: 93 | AF77: 2.805429864 | AG77: 74 | AH77: 12 | AI77: 7 | AJ77: 26 | AK77: 14 | AL77: 14 | AM77: 14 | AN77: 9 | AO77: 9 | AP77: 6 | AQ77: 243 | AR77: 179 | AS77: 233 | AT77: 202
A78: Thurrock:Aveley and Uplands | B78: 9267 | C78: 37.74867811 | D78: 1955 | E78: 1099 | F78: 1327 | G78: 1381 | H78: 1311 | I78: 1011 | J78: 677 | K78: 506 | L78: 0 | M78: 11 | N78: 58 | O78: 11 | P78: 69 | Q78: 1.489155066 | R78: 43 | S78: 3 | T78: 5 | U78: 11 | V78: 7 | W78: 11 | X78: 20 | Y78: 11 | Z78: 6 | AA78: 9 | AB78: 7 | AC78: 1 | AD78: 2 | AE78: 86 | AF78: 1.856048344 | AG78: 71 | AH78: 4 | AI78: 11 | AJ78: 26 | AK78: 16 | AL78: 12 | AM78: 18 | AN78: 10 | AO78: 2 | AP78: 1 | AQ78: 54 | AR78: 43 | AS78: 190 | AT78: 183
A79: Colchester:Tiptree | B79: 7680 | C79: 45.66041667 | D79: 1145 | E79: 832 | F79: 650 | G79: 892 | H79: 1119 | I79: 1109 | J79: 1147 | K79: 786 | L79: 2 | M79: 8 | N79: 81 | O79: 10 | P79: 91 | Q79: 2.369791667 | R79: 66 | S79: 10 | T79: 3 | U79: 5 | V79: 7 | W79: 8 | X79: 27 | Y79: 9 | Z79: 15 | AA79: 9 | AB79: 14 | AC79: 7 | AD79: 2 | AE79: 108 | AF79: 2.8125 | AG79: 83 | AH79: 11 | AI79: 14 | AJ79: 25 | AK79: 15 | AL79: 19 | AM79: 16 | AN79: 21 | AO79: 9 | AP79: 1 | AQ79: 211 | AR79: 181 | AS79: 245 | AT79: 234
A80: Thurrock:Ockendon | B80: 10380 | C80: 36.8849711 | D80: 2336 | E80: 1212 | F80: 1520 | G80: 1528 | H80: 1393 | I80: 1100 | J80: 775 | K80: 516 | L80: 0 | M80: 8 | N80: 78 | O80: 8 | P80: 86 | Q80: 1.657032755 | R80: 54 | S80: 11 | T80: 6 | U80: 9 | V80: 6 | W80: 6 | X80: 26 | Y80: 16 | Z80: 13 | AA80: 15 | AB80: 5 | AC80: 2 | AD80: 3 | AE80: 97 | AF80: 1.868978805 | AG80: 78 | AH80: 11 | AI80: 8 | AJ80: 25 | AK80: 24 | AL80: 20 | AM80: 15 | AN80: 6 | AO80: 4 | AP80: 3 | AQ80: 81 | AR80: 46 | AS80: 234 | AT80: 209
A81: Brentwood:Brizes and Doddinghurst | B81: 5977 | C81: 43.7744688 | D81: 998 | E81: 730 | F81: 416 | G81: 740 | H81: 1016 | I81: 808 | J81: 746 | K81: 523 | L81: 0 | M81: 11 | N81: 57 | O81: 11 | P81: 68 | Q81: 2.275388991 | R81: 54 | S81: 10 | T81: 2 | U81: 0 | V81: 2 | W81: 1 | X81: 20 | Y81: 4 | Z81: 4 | AA81: 11 | AB81: 11 | AC81: 9 | AD81: 7 | AE81: 93 | AF81: 3.111929061 | AG81: 78 | AH81: 10 | AI81: 5 | AJ81: 25 | AK81: 7 | AL81: 13 | AM81: 15 | AN81: 14 | AO81: 9 | AP81: 8 | AQ81: 193 | AR81: 221 | AS81: 187 | AT81: 201
A82: Braintree:The Three Colnes | B82: 5296 | C82: 43.31061178 | D82: 995 | E82: 488 | F82: 477 | G82: 705 | H82: 832 | I82: 695 | J82: 574 | K82: 530 | L82: 0 | M82: 5 | N82: 46 | O82: 5 | P82: 51 | Q82: 1.925981873 | R82: 38 | S82: 7 | T82: 1 | U82: 2 | V82: 3 | W82: 5 | X82: 16 | Y82: 10 | Z82: 9 | AA82: 5 | AB82: 3 | AC82: 1 | AD82: 0 | AE82: 76 | AF82: 2.870090634 | AG82: 64 | AH82: 7 | AI82: 5 | AJ82: 25 | AK82: 18 | AL82: 8 | AM82: 9 | AN82: 9 | AO82: 5 | AP82: 0 | AQ82: 130 | AR82: 189 | AS82: 130 | AT82: 161
A83: Thurrock:Grays Riverside | B83: 12750 | C83: 32.25270588 | D83: 3063 | E83: 1485 | F83: 2871 | G83: 2135 | H83: 1556 | I83: 835 | J83: 457 | K83: 348 | L83: 1 | M83: 13 | N83: 79 | O83: 14 | P83: 93 | Q83: 1.458823529 | R83: 54 | S83: 12 | T83: 11 | U83: 12 | V83: 4 | W83: 4 | X83: 24 | Y83: 23 | Z83: 17 | AA83: 17 | AB83: 2 | AC83: 1 | AD83: 2 | AE83: 115 | AF83: 1.803921569 | AG83: 94 | AH83: 11 | AI83: 10 | AJ83: 24 | AK83: 37 | AL83: 26 | AM83: 22 | AN83: 3 | AO83: 0 | AP83: 0 | AQ83: 46 | AR83: 38 | AS83: 248 | AT83: 242
A84: Basildon:Billericay West | B84: 11914 | C84: 41.91807957 | D84: 2201 | E84: 1169 | F84: 1294 | G84: 1799 | H84: 1825 | I84: 1401 | J84: 1156 | K84: 1069 | L84: 0 | M84: 12 | N84: 75 | O84: 12 | P84: 87 | Q84: 1.460466678 | R84: 61 | S84: 6 | T84: 5 | U84: 12 | V84: 3 | W84: 9 | X84: 16 | Y84: 17 | Z84: 16 | AA84: 9 | AB84: 4 | AC84: 8 | AD84: 5 | AE84: 114 | AF84: 1.913714957 | AG84: 103 | AH84: 6 | AI84: 5 | AJ84: 24 | AK84: 27 | AL84: 19 | AM84: 12 | AN84: 12 | AO84: 12 | AP84: 6 | AQ84: 47 | AR84: 47 | AS84: 236 | AT84: 240
A85: Colchester:Highwoods | B85: 10057 | C85: 34.23018793 | D85: 2464 | E85: 1213 | F85: 1571 | G85: 1737 | H85: 1383 | I85: 842 | J85: 525 | K85: 322 | L85: 0 | M85: 11 | N85: 69 | O85: 11 | P85: 80 | Q85: 1.590931689 | R85: 53 | S85: 8 | T85: 10 | U85: 4 | V85: 5 | W85: 8 | X85: 21 | Y85: 16 | Z85: 13 | AA85: 12 | AB85: 8 | AC85: 1 | AD85: 1 | AE85: 103 | AF85: 2.04832455 | AG85: 92 | AH85: 7 | AI85: 4 | AJ85: 24 | AK85: 21 | AL85: 24 | AM85: 16 | AN85: 13 | AO85: 2 | AP85: 1 | AQ85: 70 | AR85: 65 | AS85: 219 | AT85: 222
A86: Basildon:Langdon Hills | B86: 9205 | C86: 39.17794677 | D86: 1732 | E86: 1079 | F86: 1220 | G86: 1373 | H86: 1457 | I86: 1114 | J86: 773 | K86: 457 | L86: 0 | M86: 7 | N86: 63 | O86: 7 | P86: 70 | Q86: 1.520912548 | R86: 50 | S86: 4 | T86: 7 | U86: 2 | V86: 7 | W86: 1 | X86: 18 | Y86: 14 | Z86: 15 | AA86: 9 | AB86: 10 | AC86: 1 | AD86: 1 | AE86: 101 | AF86: 2.194459533 | AG86: 87 | AH86: 5 | AI86: 9 | AJ86: 24 | AK86: 20 | AL86: 26 | AM86: 17 | AN86: 11 | AO86: 0 | AP86: 1 | AQ86: 58 | AR86: 82 | AS86: 194 | AT86: 216
A87: Colchester:Birch and Winstree | B87: 5667 | C87: 42.06017293 | D87: 1060 | E87: 599 | F87: 451 | G87: 827 | H87: 889 | I87: 810 | J87: 693 | K87: 338 | L87: 1 | M87: 14 | N87: 59 | O87: 15 | P87: 74 | Q87: 2.611611082 | R87: 55 | S87: 8 | T87: 3 | U87: 3 | V87: 5 | W87: 6 | X87: 22 | Y87: 9 | Z87: 12 | AA87: 15 | AB87: 4 | AC87: 4 | AD87: 1 | AE87: 100 | AF87: 3.529204164 | AG87: 80 | AH87: 9 | AI87: 11 | AJ87: 24 | AK87: 12 | AL87: 20 | AM87: 19 | AN87: 13 | AO87: 9 | AP87: 3 | AQ87: 249 | AR87: 266 | AS87: 209 | AT87: 214
A88: Thurrock:Chafford and North Stifford | B88: 8219 | C88: 32.3416474 | D88: 2241 | E88: 874 | F88: 1323 | G88: 1506 | H88: 1254 | I88: 576 | J88: 303 | K88: 142 | L88: 2 | M88: 8 | N88: 65 | O88: 10 | P88: 75 | Q88: 1.825039543 | R88: 53 | S88: 7 | T88: 5 | U88: 8 | V88: 2 | W88: 6 | X88: 18 | Y88: 18 | Z88: 17 | AA88: 6 | AB88: 4 | AC88: 2 | AD88: 1 | AE88: 92 | AF88: 2.238715172 | AG88: 81 | AH88: 8 | AI88: 3 | AJ88: 24 | AK88: 20 | AL88: 18 | AM88: 15 | AN88: 6 | AO88: 1 | AP88: 3 | AQ88: 110 | AR88: 85 | AS88: 210 | AT88: 199
A89: Chelmsford:Great Baddow West | B89: 6455 | C89: 38.84786987 | D89: 1344 | E89: 730 | F89: 884 | G89: 955 | H89: 852 | I89: 637 | J89: 627 | K89: 426 | L89: 0 | M89: 11 | N89: 61 | O89: 11 | P89: 72 | Q89: 2.230828815 | R89: 50 | S89: 2 | T89: 12 | U89: 6 | V89: 2 | W89: 6 | X89: 25 | Y89: 6 | Z89: 8 | AA89: 11 | AB89: 6 | AC89: 7 | AD89: 3 | AE89: 81 | AF89: 2.509682417 | AG89: 70 | AH89: 3 | AI89: 8 | AJ89: 24 | AK89: 8 | AL89: 20 | AM89: 16 | AN89: 8 | AO89: 3 | AP89: 2 | AQ89: 184 | AR89: 130 | AS89: 200 | AT89: 179
A90: Southend-on-Sea:Chalkwell | B90: 10311 | C90: 42.52303365 | D90: 1586 | E90: 1060 | F90: 1615 | G90: 1600 | H90: 1384 | I90: 1118 | J90: 851 | K90: 1097 | L90: 0 | M90: 13 | N90: 86 | O90: 13 | P90: 99 | Q90: 1.920279313 | R90: 55 | S90: 12 | T90: 12 | U90: 14 | V90: 6 | W90: 6 | X90: 19 | Y90: 22 | Z90: 16 | AA90: 15 | AB90: 8 | AC90: 5 | AD90: 5 | AE90: 126 | AF90: 2.443991853 | AG90: 102 | AH90: 13 | AI90: 11 | AJ90: 23 | AK90: 25 | AL90: 27 | AM90: 23 | AN90: 9 | AO90: 12 | AP90: 3 | AQ90: 127 | AR90: 116 | AS90: 259 | AT90: 258
A91: Chelmsford:Patching Hall | B91: 9026 | C91: 41.63793485 | D91: 1650 | E91: 980 | F91: 1131 | G91: 1170 | H91: 1278 | I91: 1079 | J91: 906 | K91: 832 | L91: 0 | M91: 15 | N91: 76 | O91: 15 | P91: 91 | Q91: 2.016397075 | R91: 47 | S91: 16 | T91: 12 | U91: 13 | V91: 3 | W91: 4 | X91: 25 | Y91: 19 | Z91: 15 | AA91: 12 | AB91: 6 | AC91: 4 | AD91: 6 | AE91: 123 | AF91: 2.725459783 | AG91: 100 | AH91: 16 | AI91: 7 | AJ91: 23 | AK91: 27 | AL91: 29 | AM91: 22 | AN91: 6 | AO91: 6 | AP91: 6 | AQ91: 151 | AR91: 164 | AS91: 243 | AT91: 251
A92: Southend-on-Sea:West Leigh | B92: 9356 | C92: 42.23514322 | D92: 1837 | E92: 816 | F92: 889 | G92: 1420 | H92: 1411 | I92: 1146 | J92: 990 | K92: 847 | L92: 0 | M92: 13 | N92: 72 | O92: 13 | P92: 85 | Q92: 1.817015819 | R92: 49 | S92: 8 | T92: 14 | U92: 13 | V92: 1 | W92: 7 | X92: 18 | Y92: 18 | Z92: 7 | AA92: 18 | AB92: 5 | AC92: 6 | AD92: 6 | AE92: 115 | AF92: 2.458315519 | AG92: 103 | AH92: 9 | AI92: 3 | AJ92: 23 | AK92: 25 | AL92: 14 | AM92: 23 | AN92: 11 | AO92: 10 | AP92: 5 | AQ92: 108 | AR92: 123 | AS92: 232 | AT92: 241
A93: Braintree:Halstead St Andrew's | B93: 7133 | C93: 42.50623861 | D93: 1351 | E93: 688 | F93: 751 | G93: 1001 | H93: 1009 | I93: 860 | J93: 772 | K93: 701 | L93: 0 | M93: 9 | N93: 73 | O93: 9 | P93: 82 | Q93: 2.299172859 | R93: 60 | S93: 4 | T93: 4 | U93: 8 | V93: 6 | W93: 7 | X93: 24 | Y93: 12 | Z93: 11 | AA93: 9 | AB93: 9 | AC93: 2 | AD93: 6 | AE93: 103 | AF93: 2.88798542 | AG93: 87 | AH93: 4 | AI93: 12 | AJ93: 23 | AK93: 19 | AL93: 21 | AM93: 16 | AN93: 11 | AO93: 4 | AP93: 5 | AQ93: 198 | AR93: 191 | AS93: 227 | AT93: 223
A94: Tendring:Bockings Elm | B94: 5147 | C94: 42.65280746 | D94: 1010 | E94: 592 | F94: 547 | G94: 504 | H94: 640 | I94: 615 | J94: 691 | K94: 548 | L94: 0 | M94: 5 | N94: 59 | O94: 5 | P94: 64 | Q94: 2.486885564 | R94: 46 | S94: 10 | T94: 6 | U94: 2 | V94: 0 | W94: 6 | X94: 19 | Y94: 11 | Z94: 12 | AA94: 4 | AB94: 4 | AC94: 1 | AD94: 7 | AE94: 102 | AF94: 3.963473868 | AG94: 85 | AH94: 10 | AI94: 7 | AJ94: 23 | AK94: 20 | AL94: 21 | AM94: 11 | AN94: 10 | AO94: 6 | AP94: 6 | AQ94: 232 | AR94: 287 | AS94: 178 | AT94: 218
A95: Thurrock:The Homesteads | B95: 8460 | C95: 41.27293144 | D95: 1520 | E95: 998 | F95: 894 | G95: 1195 | H95: 1139 | I95: 1223 | J95: 997 | K95: 494 | L95: 0 | M95: 7 | N95: 50 | O95: 7 | P95: 57 | Q95: 1.34751773 | R95: 38 | S95: 11 | T95: 2 | U95: 2 | V95: 4 | W95: 8 | X95: 18 | Y95: 12 | Z95: 7 | AA95: 4 | AB95: 7 | AC95: 0 | AD95: 0 | AE95: 79 | AF95: 1.867612293 | AG95: 64 | AH95: 12 | AI95: 3 | AJ95: 23 | AK95: 18 | AL95: 13 | AM95: 10 | AN95: 8 | AO95: 3 | AP95: 1 | AQ95: 33 | AR95: 45 | AS95: 157 | AT95: 174
A96: Braintree:Halstead Trinity | B96: 4897 | C96: 39.12517868 | D96: 1029 | E96: 582 | F96: 606 | G96: 684 | H96: 680 | I96: 496 | J96: 477 | K96: 343 | L96: 1 | M96: 11 | N96: 52 | O96: 12 | P96: 64 | Q96: 2.613845211 | R96: 38 | S96: 8 | T96: 5 | U96: 9 | V96: 4 | W96: 5 | X96: 17 | Y96: 13 | Z96: 6 | AA96: 12 | AB96: 7 | AC96: 0 | AD96: 2 | AE96: 76 | AF96: 3.103941188 | AG96: 63 | AH96: 7 | AI96: 6 | AJ96: 23 | AK96: 19 | AL96: 9 | AM96: 18 | AN96: 4 | AO96: 1 | AP96: 2 | AQ96: 250 | AR96: 219 | AS96: 176 | AT96: 164
A97: Southend-on-Sea:Thorpe | B97: 9190 | C97: 46.17519042 | D97: 1410 | E97: 910 | F97: 799 | G97: 1087 | H97: 1378 | I97: 1195 | J97: 1231 | K97: 1180 | L97: 0 | M97: 6 | N97: 65 | O97: 6 | P97: 71 | Q97: 1.54515778 | R97: 49 | S97: 7 | T97: 5 | U97: 6 | V97: 4 | W97: 7 | X97: 15 | Y97: 12 | Z97: 12 | AA97: 14 | AB97: 2 | AC97: 5 | AD97: 3 | AE97: 111 | AF97: 2.415669206 | AG97: 97 | AH97: 8 | AI97: 6 | AJ97: 22 | AK97: 17 | AL97: 16 | AM97: 24 | AN97: 8 | AO97: 10 | AP97: 9 | AQ97: 64 | AR97: 106 | AS97: 197 | AT97: 235
A98: Harlow:Sumners and Kingsmoor | B98: 7241 | C98: 37.36693827 | D98: 1543 | E98: 907 | F98: 1011 | G98: 1007 | H98: 1036 | I98: 846 | J98: 570 | K98: 321 | L98: 0 | M98: 9 | N98: 55 | O98: 9 | P98: 64 | Q98: 1.767711642 | R98: 40 | S98: 11 | T98: 4 | U98: 3 | V98: 6 | W98: 4 | X98: 12 | Y98: 18 | Z98: 14 | AA98: 10 | AB98: 4 | AC98: 2 | AD98: 0 | AE98: 107 | AF98: 2.955392902 | AG98: 83 | AH98: 13 | AI98: 11 | AJ98: 22 | AK98: 24 | AL98: 26 | AM98: 16 | AN98: 12 | AO98: 5 | AP98: 0 | AQ98: 100 | AR98: 200 | AS98: 175 | AT98: 231
A99: Harlow:Little Parndon and Hare Street | B99: 8635 | C99: 36.92924146 | D99: 1826 | E99: 1053 | F99: 1599 | G99: 1117 | H99: 1081 | I99: 835 | J99: 479 | K99: 645 | L99: 1 | M99: 6 | N99: 73 | O99: 7 | P99: 80 | Q99: 1.852924146 | R99: 54 | S99: 5 | T99: 7 | U99: 11 | V99: 3 | W99: 12 | X99: 15 | Y99: 16 | Z99: 14 | AA99: 10 | AB99: 7 | AC99: 1 | AD99: 3 | AE99: 89 | AF99: 2.061378112 | AG99: 76 | AH99: 8 | AI99: 5 | AJ99: 22 | AK99: 18 | AL99: 21 | AM99: 12 | AN99: 7 | AO99: 4 | AP99: 3 | AQ99: 115 | AR99: 67 | AS99: 220 | AT99: 192
A100: Chelmsford:Waterhouse Farm | B100: 6504 | C100: 37.87284748 | D100: 1320 | E100: 802 | F100: 1164 | G100: 908 | H100: 764 | I100: 564 | J100: 445 | K100: 537 | L100: 1 | M100: 17 | N100: 55 | O100: 18 | P100: 73 | Q100: 2.244772448 | R100: 36 | S100: 10 | T100: 12 | U100: 10 | V100: 5 | W100: 5 | X100: 15 | Y100: 18 | Z100: 12 | AA100: 12 | AB100: 6 | AC100: 3 | AD100: 2 | AE100: 87 | AF100: 2.675276753 | AG100: 62 | AH100: 11 | AI100: 14 | AJ100: 22 | AK100: 24 | AL100: 16 | AM100: 17 | AN100: 6 | AO100: 1 | AP100: 1 | AQ100: 190 | AR100: 156 | AS100: 204 | AT100: 187
A101: Harlow:Old Harlow | B101: 7317 | C101: 40.90952576 | D101: 1351 | E101: 806 | F101: 970 | G101: 970 | H101: 1047 | I101: 912 | J101: 644 | K101: 617 | L101: 0 | M101: 12 | N101: 41 | O101: 12 | P101: 53 | Q101: 1.448681153 | R101: 31 | S101: 10 | T101: 3 | U101: 4 | V101: 5 | W101: 2 | X101: 16 | Y101: 7 | Z101: 11 | AA101: 8 | AB101: 4 | AC101: 1 | AD101: 2 | AE101: 87 | AF101: 2.37802378 | AG101: 67 | AH101: 10 | AI101: 10 | AJ101: 22 | AK101: 14 | AL101: 16 | AM101: 17 | AN101: 9 | AO101: 2 | AP101: 3 | AQ101: 43 | AR101: 98 | AS101: 136 | AT101: 185
A102: Chelmsford:Bicknacre and East and West Hanningfield | B102: 5052 | C102: 44.43032462 | D102: 827 | E102: 504 | F102: 443 | G102: 609 | H102: 803 | I102: 713 | J102: 724 | K102: 429 | L102: 1 | M102: 9 | N102: 62 | O102: 10 | P102: 72 | Q102: 2.850356295 | R102: 54 | S102: 11 | T102: 5 | U102: 1 | V102: 1 | W102: 2 | X102: 28 | Y102: 5 | Z102: 10 | AA102: 11 | AB102: 5 | AC102: 4 | AD102: 5 | AE102: 78 | AF102: 3.087885986 | AG102: 67 | AH102: 11 | AI102: 0 | AJ102: 22 | AK102: 8 | AL102: 9 | AM102: 18 | AN102: 7 | AO102: 7 | AP102: 6 | AQ102: 278 | AR102: 216 | AS102: 201 | AT102: 171
A103: Colchester:Prettygate | B103: 7365 | C103: 45.28268839 | D103: 1203 | E103: 827 | F103: 550 | G103: 868 | H103: 1119 | I103: 976 | J103: 905 | K103: 917 | L103: 0 | M103: 9 | N103: 45 | O103: 9 | P103: 54 | Q103: 1.466395112 | R103: 30 | S103: 12 | T103: 4 | U103: 6 | V103: 2 | W103: 1 | X103: 15 | Y103: 3 | Z103: 10 | AA103: 10 | AB103: 5 | AC103: 2 | AD103: 7 | AE103: 74 | AF103: 2.009504413 | AG103: 53 | AH103: 13 | AI103: 8 | AJ103: 22 | AK103: 6 | AL103: 12 | AM103: 14 | AN103: 8 | AO103: 4 | AP103: 6 | AQ103: 50 | AR103: 58 | AS103: 142 | AT103: 153
A104: Maldon:Great Totham | B104: 3791 | C104: 45.15589554 | D104: 671 | E104: 295 | F104: 296 | G104: 461 | H104: 577 | I104: 569 | J104: 596 | K104: 326 | L104: 0 | M104: 6 | N104: 33 | O104: 6 | P104: 39 | Q104: 2.057504616 | R104: 27 | S104: 7 | T104: 2 | U104: 3 | V104: 0 | W104: 1 | X104: 14 | Y104: 6 | Z104: 4 | AA104: 3 | AB104: 4 | AC104: 4 | AD104: 3 | AE104: 68 | AF104: 3.587443946 | AG104: 59 | AH104: 7 | AI104: 2 | AJ104: 22 | AK104: 10 | AL104: 5 | AM104: 13 | AN104: 8 | AO104: 7 | AP104: 2 | AQ104: 159 | AR104: 273 | AS104: 96 | AT104: 139
A105: Thurrock:Belhus | B105: 10079 | C105: 35.55987697 | D105: 2334 | E105: 1297 | F105: 1492 | G105: 1585 | H105: 1394 | I105: 916 | J105: 623 | K105: 438 | L105: 0 | M105: 9 | N105: 86 | O105: 9 | P105: 95 | Q105: 1.88510765 | R105: 60 | S105: 13 | T105: 8 | U105: 8 | V105: 6 | W105: 8 | X105: 17 | Y105: 20 | Z105: 21 | AA105: 18 | AB105: 5 | AC105: 3 | AD105: 1 | AE105: 135 | AF105: 2.678837186 | AG105: 105 | AH105: 14 | AI105: 16 | AJ105: 21 | AK105: 36 | AL105: 32 | AM105: 29 | AN105: 9 | AO105: 4 | AP105: 2 | AQ105: 122 | AR105: 157 | AS105: 251 | AT105: 260
A106: Thurrock:Stanford East and Corringham Town | B106: 8465 | C106: 42.11269935 | D106: 1510 | E106: 1103 | F106: 885 | G106: 1078 | H106: 1090 | I106: 966 | J106: 1020 | K106: 813 | L106: 1 | M106: 6 | N106: 84 | O106: 7 | P106: 91 | Q106: 2.150029533 | R106: 71 | S106: 7 | T106: 3 | U106: 6 | V106: 4 | W106: 7 | X106: 24 | Y106: 10 | Z106: 16 | AA106: 10 | AB106: 8 | AC106: 8 | AD106: 8 | AE106: 104 | AF106: 2.45717661 | AG106: 86 | AH106: 8 | AI106: 10 | AJ106: 21 | AK106: 19 | AL106: 23 | AM106: 13 | AN106: 14 | AO106: 10 | AP106: 4 | AQ106: 173 | AR106: 121 | AS106: 242 | AT106: 226
A107: Thurrock:Tilbury Riverside and Thurrock Park | B107: 7158 | C107: 33.19558536 | D107: 1978 | E107: 958 | F107: 1078 | G107: 983 | H107: 837 | I107: 619 | J107: 418 | K107: 287 | L107: 1 | M107: 14 | N107: 82 | O107: 15 | P107: 97 | Q107: 2.710254261 | R107: 63 | S107: 12 | T107: 4 | U107: 13 | V107: 5 | W107: 10 | X107: 23 | Y107: 17 | Z107: 18 | AA107: 15 | AB107: 7 | AC107: 5 | AD107: 1 | AE107: 102 | AF107: 2.849958089 | AG107: 79 | AH107: 12 | AI107: 11 | AJ107: 21 | AK107: 29 | AL107: 21 | AM107: 16 | AN107: 7 | AO107: 3 | AP107: 0 | AQ107: 263 | AR107: 187 | AS107: 254 | AT107: 220
A108: Castle Point:Cedar Hall | B108: 5711 | C108: 45.94641919 | D108: 832 | E108: 599 | F108: 567 | G108: 637 | H108: 805 | I108: 742 | J108: 876 | K108: 653 | L108: 0 | M108: 4 | N108: 65 | O108: 4 | P108: 69 | Q108: 2.416389424 | R108: 47 | S108: 10 | T108: 4 | U108: 6 | V108: 2 | W108: 9 | X108: 15 | Y108: 17 | Z108: 9 | AA108: 10 | AB108: 1 | AC108: 3 | AD108: 5 | AE108: 94 | AF108: 3.291892838 | AG108: 81 | AH108: 9 | AI108: 4 | AJ108: 21 | AK108: 21 | AL108: 17 | AM108: 12 | AN108: 10 | AO108: 3 | AP108: 7 | AQ108: 218 | AR108: 241 | AS108: 193 | AT108: 204
A109: Harlow:Harlow Common | B109: 7524 | C109: 39.54505582 | D109: 1572 | E109: 850 | F109: 1026 | G109: 927 | H109: 1037 | I109: 827 | J109: 639 | K109: 646 | L109: 1 | M109: 10 | N109: 62 | O109: 11 | P109: 73 | Q109: 1.940457204 | R109: 44 | S109: 13 | T109: 1 | U109: 12 | V109: 3 | W109: 8 | X109: 18 | Y109: 16 | Z109: 6 | AA109: 17 | AB109: 3 | AC109: 2 | AD109: 1 | AE109: 91 | AF109: 2.418926103 | AG109: 68 | AH109: 14 | AI109: 9 | AJ109: 21 | AK109: 26 | AL109: 13 | AM109: 17 | AN109: 7 | AO109: 5 | AP109: 1 | AQ109: 134 | AR109: 108 | AS109: 203 | AT109: 195
A110: Brentwood:Pilgrims Hatch | B110: 5972 | C110: 42.785499 | D110: 1049 | E110: 660 | F110: 668 | G110: 704 | H110: 836 | I110: 776 | J110: 728 | K110: 551 | L110: 1 | M110: 10 | N110: 55 | O110: 11 | P110: 66 | Q110: 2.210314802 | R110: 42 | S110: 10 | T110: 3 | U110: 8 | V110: 3 | W110: 8 | X110: 17 | Y110: 13 | Z110: 9 | AA110: 9 | AB110: 4 | AC110: 5 | AD110: 1 | AE110: 87 | AF110: 2.913596785 | AG110: 71 | AH110: 10 | AI110: 6 | AJ110: 21 | AK110: 15 | AL110: 17 | AM110: 14 | AN110: 7 | AO110: 8 | AP110: 3 | AQ110: 181 | AR110: 196 | AS110: 182 | AT110: 186
A111: Tendring:Harwich West | B111: 5163 | C111: 45.35405772 | D111: 934 | E111: 484 | F111: 450 | G111: 540 | H111: 645 | I111: 686 | J111: 808 | K111: 616 | L111: 2 | M111: 11 | N111: 56 | O111: 13 | P111: 69 | Q111: 2.672864614 | R111: 51 | S111: 7 | T111: 7 | U111: 4 | V111: 0 | W111: 4 | X111: 21 | Y111: 13 | Z111: 10 | AA111: 7 | AB111: 2 | AC111: 6 | AD111: 6 | AE111: 84 | AF111: 3.253922138 | AG111: 74 | AH111: 7 | AI111: 3 | AJ111: 21 | AK111: 15 | AL111: 14 | AM111: 9 | AN111: 7 | AO111: 12 | AP111: 6 | AQ111: 257 | AR111: 237 | AS111: 192 | AT111: 181
A112: Rochford:Hawkwell North | B112: 4669 | C112: 41.8877704 | D112: 811 | E112: 593 | F112: 465 | G112: 555 | H112: 744 | I112: 674 | J112: 482 | K112: 345 | L112: 0 | M112: 5 | N112: 49 | O112: 5 | P112: 54 | Q112: 2.31312915 | R112: 40 | S112: 5 | T112: 3 | U112: 3 | V112: 3 | W112: 2 | X112: 19 | Y112: 7 | Z112: 9 | AA112: 7 | AB112: 7 | AC112: 2 | AD112: 1 | AE112: 77 | AF112: 3.298350825 | AG112: 67 | AH112: 6 | AI112: 4 | AJ112: 21 | AK112: 11 | AL112: 16 | AM112: 17 | AN112: 7 | AO112: 2 | AP112: 3 | AQ112: 200 | AR112: 244 | AS112: 146 | AT112: 166
A113: Chelmsford:Galleywood | B113: 5672 | C113: 43.2157969 | D113: 950 | E113: 648 | F113: 581 | G113: 661 | H113: 877 | I113: 748 | J113: 679 | K113: 528 | L113: 0 | M113: 8 | N113: 62 | O113: 8 | P113: 70 | Q113: 2.468265162 | R113: 42 | S113: 13 | T113: 7 | U113: 5 | V113: 3 | W113: 1 | X113: 32 | Y113: 9 | Z113: 6 | AA113: 5 | AB113: 12 | AC113: 3 | AD113: 1 | AE113: 74 | AF113: 2.609308886 | AG113: 56 | AH113: 13 | AI113: 5 | AJ113: 21 | AK113: 15 | AL113: 7 | AM113: 15 | AN113: 10 | AO113: 2 | AP113: 4 | AQ113: 226 | AR113: 144 | AS113: 195 | AT113: 155
A114: Thurrock:Stifford Clays | B114: 6652 | C114: 41.64687312 | D114: 1272 | E114: 825 | F114: 633 | G114: 885 | H114: 964 | I114: 759 | J114: 655 | K114: 659 | L114: 0 | M114: 10 | N114: 55 | O114: 10 | P114: 65 | Q114: 1.954299459 | R114: 52 | S114: 4 | T114: 2 | U114: 4 | V114: 3 | W114: 6 | X114: 25 | Y114: 7 | Z114: 9 | AA114: 11 | AB114: 2 | AC114: 3 | AD114: 2 | AE114: 71 | AF114: 2.134696332 | AG114: 65 | AH114: 4 | AI114: 2 | AJ114: 21 | AK114: 9 | AL114: 9 | AM114: 15 | AN114: 8 | AO114: 6 | AP114: 2 | AQ114: 141 | AR114: 75 | AS114: 179 | AT114: 149
A115: Rochford:Sweyne Park | B115: 4510 | C115: 38.36341463 | D115: 947 | E115: 475 | F115: 622 | G115: 703 | H115: 692 | I115: 448 | J115: 373 | K115: 250 | L115: 0 | M115: 8 | N115: 37 | O115: 8 | P115: 45 | Q115: 1.99556541 | R115: 27 | S115: 10 | T115: 4 | U115: 2 | V115: 2 | W115: 2 | X115: 19 | Y115: 12 | Z115: 5 | AA115: 4 | AB115: 2 | AC115: 0 | AD115: 1 | AE115: 68 | AF115: 3.015521064 | AG115: 52 | AH115: 11 | AI115: 5 | AJ115: 21 | AK115: 20 | AL115: 10 | AM115: 12 | AN115: 2 | AO115: 2 | AP115: 1 | AQ115: 150 | AR115: 208 | AS115: 113 | AT115: 140
A116: Tendring:St James | B116: 4162 | C116: 48.41566555 | D116: 598 | E116: 469 | F116: 340 | G116: 329 | H116: 559 | I116: 518 | J116: 656 | K116: 693 | L116: 0 | M116: 4 | N116: 35 | O116: 4 | P116: 39 | Q116: 1.874098991 | R116: 30 | S116: 3 | T116: 2 | U116: 3 | V116: 1 | W116: 3 | X116: 18 | Y116: 6 | Z116: 2 | AA116: 6 | AB116: 0 | AC116: 2 | AD116: 2 | AE116: 48 | AF116: 2.306583373 | AG116: 40 | AH116: 3 | AI116: 5 | AJ116: 21 | AK116: 9 | AL116: 3 | AM116: 5 | AN116: 3 | AO116: 4 | AP116: 2 | AQ116: 119 | AR116: 90 | AS116: 94 | AT116: 88
A117: Castle Point:Canvey Island North | B117: 6515 | C117: 47.92647736 | D117: 949 | E117: 607 | F117: 589 | G117: 596 | H117: 752 | I117: 941 | J117: 1227 | K117: 854 | L117: 1 | M117: 13 | N117: 69 | O117: 14 | P117: 83 | Q117: 2.547966232 | R117: 49 | S117: 13 | T117: 8 | U117: 11 | V117: 2 | W117: 8 | X117: 19 | Y117: 11 | Z117: 11 | AA117: 11 | AB117: 7 | AC117: 6 | AD117: 9 | AE117: 101 | AF117: 3.100537222 | AG117: 82 | AH117: 13 | AI117: 6 | AJ117: 20 | AK117: 17 | AL117: 15 | AM117: 16 | AN117: 13 | AO117: 10 | AP117: 6 | AQ117: 239 | AR117: 218 | AS117: 229 | AT117: 217
A118: Chelmsford:Broomfield and The Walthams | B118: 8325 | C118: 43.25633634 | D118: 1507 | E118: 806 | F118: 804 | G118: 1119 | H118: 1286 | I118: 1035 | J118: 963 | K118: 805 | L118: 0 | M118: 10 | N118: 58 | O118: 10 | P118: 68 | Q118: 1.633633634 | R118: 44 | S118: 9 | T118: 7 | U118: 8 | V118: 0 | W118: 4 | X118: 18 | Y118: 9 | Z118: 11 | AA118: 12 | AB118: 6 | AC118: 6 | AD118: 2 | AE118: 99 | AF118: 2.378378378 | AG118: 86 | AH118: 10 | AI118: 3 | AJ118: 20 | AK118: 17 | AL118: 23 | AM118: 14 | AN118: 14 | AO118: 8 | AP118: 2 | AQ118: 74 | AR118: 99 | AS118: 186 | AT118: 211
A119: Harlow:Toddbrook | B119: 7994 | C119: 38.04428321 | D119: 1678 | E119: 1081 | F119: 1214 | G119: 980 | H119: 1038 | I119: 737 | J119: 576 | K119: 690 | L119: 4 | M119: 14 | N119: 64 | O119: 18 | P119: 82 | Q119: 2.051538654 | R119: 45 | S119: 10 | T119: 10 | U119: 9 | V119: 8 | W119: 7 | X119: 20 | Y119: 19 | Z119: 9 | AA119: 15 | AB119: 5 | AC119: 4 | AD119: 3 | AE119: 97 | AF119: 2.426820115 | AG119: 76 | AH119: 12 | AI119: 9 | AJ119: 20 | AK119: 33 | AL119: 16 | AM119: 17 | AN119: 4 | AO119: 3 | AP119: 2 | AQ119: 157 | AR119: 109 | AS119: 226 | AT119: 208
A120: Braintree:Bocking South | B120: 5784 | C120: 38.38554633 | D120: 1254 | E120: 732 | F120: 777 | G120: 716 | H120: 817 | I120: 572 | J120: 476 | K120: 440 | L120: 1 | M120: 6 | N120: 75 | O120: 7 | P120: 82 | Q120: 2.835408022 | R120: 54 | S120: 12 | T120: 9 | U120: 5 | V120: 2 | W120: 7 | X120: 23 | Y120: 15 | Z120: 13 | AA120: 12 | AB120: 6 | AC120: 1 | AD120: 3 | AE120: 87 | AF120: 3.008298755 | AG120: 70 | AH120: 11 | AI120: 6 | AJ120: 20 | AK120: 25 | AL120: 17 | AM120: 12 | AN120: 7 | AO120: 2 | AP120: 2 | AQ120: 274 | AR120: 206 | AS120: 228 | AT120: 188
A121: Tendring:Little Clacton and Weeley | B121: 4596 | C121: 48.01218451 | D121: 705 | E121: 381 | F121: 300 | G121: 462 | H121: 652 | I121: 758 | J121: 778 | K121: 560 | L121: 2 | M121: 6 | N121: 54 | O121: 8 | P121: 62 | Q121: 2.697998259 | R121: 47 | S121: 5 | T121: 1 | U121: 6 | V121: 3 | W121: 3 | X121: 20 | Y121: 6 | Z121: 8 | AA121: 7 | AB121: 7 | AC121: 4 | AD121: 7 | AE121: 76 | AF121: 3.307223673 | AG121: 57 | AH121: 7 | AI121: 12 | AJ121: 20 | AK121: 8 | AL121: 11 | AM121: 11 | AN121: 8 | AO121: 7 | AP121: 7 | AQ121: 260 | AR121: 246 | AS121: 168 | AT121: 162
A122: Braintree:Great Notley and Braintree West | B122: 7471 | C122: 36.31401419 | D122: 1861 | E122: 886 | F122: 724 | G122: 1228 | H122: 1257 | I122: 675 | J122: 544 | K122: 296 | L122: 0 | M122: 12 | N122: 52 | O122: 12 | P122: 64 | Q122: 1.713291393 | R122: 40 | S122: 11 | T122: 5 | U122: 4 | V122: 4 | W122: 4 | X122: 22 | Y122: 4 | Z122: 14 | AA122: 10 | AB122: 7 | AC122: 1 | AD122: 0 | AE122: 75 | AF122: 2.007763352 | AG122: 60 | AH122: 11 | AI122: 4 | AJ122: 20 | AK122: 6 | AL122: 21 | AM122: 17 | AN122: 10 | AO122: 1 | AP122: 0 | AQ122: 88 | AR122: 57 | AS122: 173 | AT122: 160
A123: Chelmsford:Marconi | B123: 7453 | C123: 33.98349658 | D123: 1379 | E123: 1555 | F123: 1535 | G123: 990 | H123: 781 | I123: 478 | J123: 357 | K123: 378 | L123: 1 | M123: 6 | N123: 55 | O123: 7 | P123: 62 | Q123: 1.66375956 | R123: 30 | S123: 8 | T123: 8 | U123: 14 | V123: 2 | W123: 5 | X123: 16 | Y123: 14 | Z123: 15 | AA123: 5 | AB123: 2 | AC123: 2 | AD123: 1 | AE123: 75 | AF123: 2.012612371 | AG123: 64 | AH123: 8 | AI123: 3 | AJ123: 20 | AK123: 21 | AL123: 12 | AM123: 13 | AN123: 2 | AO123: 3 | AP123: 1 | AQ123: 84 | AR123: 59 | AS123: 166 | AT123: 159
A124: Tendring:Holland and Kirby | B124: 4715 | C124: 47.6330859 | D124: 723 | E124: 461 | F124: 317 | G124: 476 | H124: 667 | I124: 673 | J124: 802 | K124: 596 | L124: 0 | M124: 11 | N124: 44 | O124: 11 | P124: 55 | Q124: 2.332979852 | R124: 41 | S124: 5 | T124: 3 | U124: 5 | V124: 1 | W124: 3 | X124: 21 | Y124: 4 | Z124: 6 | AA124: 5 | AB124: 4 | AC124: 4 | AD124: 8 | AE124: 75 | AF124: 3.181336161 | AG124: 68 | AH124: 5 | AI124: 2 | AJ124: 20 | AK124: 7 | AL124: 9 | AM124: 12 | AN124: 10 | AO124: 3 | AP124: 10 | AQ124: 202 | AR124: 227 | AS124: 149 | AT124: 156
A125: Castle Point:Canvey Island West | B125: 5075 | C125: 41.5862069 | D125: 930 | E125: 578 | F125: 569 | G125: 665 | H125: 700 | I125: 679 | J125: 572 | K125: 382 | L125: 0 | M125: 7 | N125: 55 | O125: 7 | P125: 62 | Q125: 2.443349754 | R125: 34 | S125: 11 | T125: 8 | U125: 6 | V125: 3 | W125: 3 | X125: 19 | Y125: 10 | Z125: 7 | AA125: 10 | AB125: 5 | AC125: 7 | AD125: 1 | AE125: 71 | AF125: 2.798029557 | AG125: 55 | AH125: 10 | AI125: 6 | AJ125: 20 | AK125: 10 | AL125: 11 | AM125: 13 | AN125: 7 | AO125: 7 | AP125: 2 | AQ125: 222 | AR125: 177 | AS125: 167 | AT125: 148
A126: Maldon:Purleigh | B126: 3375 | C126: 45.52533333 | D126: 509 | E126: 354 | F126: 213 | G126: 387 | H126: 612 | I126: 557 | J126: 492 | K126: 251 | L126: 1 | M126: 3 | N126: 42 | O126: 4 | P126: 46 | Q126: 2.725925926 | R126: 36 | S126: 5 | T126: 1 | U126: 2 | V126: 2 | W126: 1 | X126: 21 | Y126: 6 | Z126: 6 | AA126: 6 | AB126: 2 | AC126: 1 | AD126: 3 | AE126: 65 | AF126: 3.851851852 | AG126: 53 | AH126: 6 | AI126: 6 | AJ126: 20 | AK126: 11 | AL126: 12 | AM126: 8 | AN126: 3 | AO126: 3 | AP126: 6 | AQ126: 264 | AR126: 285 | AS126: 115 | AT126: 130
A127: Epping Forest:Chipping Ongar, Greensted and Marden Ash | B127: 4165 | C127: 45.40480192 | D127: 689 | E127: 443 | F127: 313 | G127: 512 | H127: 596 | I127: 554 | J127: 530 | K127: 528 | L127: 0 | M127: 6 | N127: 40 | O127: 6 | P127: 46 | Q127: 2.208883553 | R127: 33 | S127: 2 | T127: 2 | U127: 4 | V127: 5 | W127: 3 | X127: 14 | Y127: 4 | Z127: 7 | AA127: 8 | AB127: 2 | AC127: 3 | AD127: 3 | AE127: 64 | AF127: 3.073229292 | AG127: 57 | AH127: 2 | AI127: 5 | AJ127: 20 | AK127: 8 | AL127: 12 | AM127: 11 | AN127: 5 | AO127: 5 | AP127: 1 | AQ127: 180 | AR127: 212 | AS127: 114 | AT127: 128
A128: Castle Point:St Mary's | B128: 6315 | C128: 44.44639747 | D128: 1011 | E128: 688 | F128: 638 | G128: 800 | H128: 901 | I128: 760 | J128: 823 | K128: 694 | L128: 0 | M128: 16 | N128: 58 | O128: 16 | P128: 74 | Q128: 2.343626287 | R128: 48 | S128: 11 | T128: 4 | U128: 9 | V128: 2 | W128: 3 | X128: 17 | Y128: 14 | Z128: 12 | AA128: 11 | AB128: 6 | AC128: 5 | AD128: 3 | AE128: 104 | AF128: 3.293745051 | AG128: 81 | AH128: 11 | AI128: 12 | AJ128: 19 | AK128: 23 | AL128: 19 | AM128: 18 | AN128: 10 | AO128: 8 | AP128: 2 | AQ128: 205 | AR128: 242 | AS128: 208 | AT128: 225
A129: Colchester:West Mersea | B129: 7400 | C129: 49.10797297 | D129: 1053 | E129: 623 | F129: 499 | G129: 753 | H129: 1068 | I129: 1101 | J129: 1242 | K129: 1061 | L129: 0 | M129: 10 | N129: 62 | O129: 10 | P129: 72 | Q129: 1.945945946 | R129: 39 | S129: 8 | T129: 4 | U129: 8 | V129: 13 | W129: 2 | X129: 17 | Y129: 9 | Z129: 11 | AA129: 8 | AB129: 4 | AC129: 14 | AD129: 7 | AE129: 83 | AF129: 2.243243243 | AG129: 69 | AH129: 9 | AI129: 5 | AJ129: 19 | AK129: 17 | AL129: 11 | AM129: 10 | AN129: 8 | AO129: 10 | AP129: 6 | AQ129: 135 | AR129: 86 | AS129: 199 | AT129: 180
A130: Castle Point:Victoria | B130: 5809 | C130: 45.37510759 | D130: 876 | E130: 645 | F130: 503 | G130: 700 | H130: 827 | I130: 801 | J130: 829 | K130: 628 | L130: 0 | M130: 9 | N130: 61 | O130: 9 | P130: 70 | Q130: 2.410053365 | R130: 49 | S130: 7 | T130: 8 | U130: 5 | V130: 1 | W130: 4 | X130: 22 | Y130: 11 | Z130: 13 | AA130: 9 | AB130: 6 | AC130: 2 | AD130: 2 | AE130: 78 | AF130: 2.685488036 | AG130: 63 | AH130: 9 | AI130: 6 | AJ130: 19 | AK130: 14 | AL130: 15 | AM130: 19 | AN130: 5 | AO130: 3 | AP130: 3 | AQ130: 217 | AR130: 158 | AS130: 196 | AT130: 170
A131: Brentwood:Tipps Cross | B131: 3831 | C131: 45.51735839 | D131: 566 | E131: 484 | F131: 225 | G131: 404 | H131: 683 | I131: 558 | J131: 538 | K131: 373 | L131: 0 | M131: 6 | N131: 43 | O131: 6 | P131: 49 | Q131: 2.558078831 | R131: 39 | S131: 3 | T131: 1 | U131: 4 | V131: 2 | W131: 1 | X131: 18 | Y131: 4 | Z131: 10 | AA131: 7 | AB131: 3 | AC131: 1 | AD131: 3 | AE131: 67 | AF131: 3.497781258 | AG131: 59 | AH131: 4 | AI131: 4 | AJ131: 19 | AK131: 7 | AL131: 11 | AM131: 12 | AN131: 8 | AO131: 2 | AP131: 4 | AQ131: 242 | AR131: 263 | AS131: 123 | AT131: 135
A132: Colchester:Marks Tey | B132: 2604 | C132: 41.84562212 | D132: 452 | E132: 289 | F132: 220 | G132: 402 | H132: 451 | I132: 336 | J132: 302 | K132: 152 | L132: 0 | M132: 4 | N132: 35 | O132: 4 | P132: 39 | Q132: 2.995391705 | R132: 25 | S132: 5 | T132: 5 | U132: 2 | V132: 2 | W132: 2 | X132: 12 | Y132: 5 | Z132: 9 | AA132: 7 | AB132: 2 | AC132: 1 | AD132: 1 | AE132: 50 | AF132: 3.840245776 | AG132: 40 | AH132: 6 | AI132: 4 | AJ132: 19 | AK132: 4 | AL132: 13 | AM132: 6 | AN132: 5 | AO132: 2 | AP132: 1 | AQ132: 285 | AR132: 284 | AS132: 97 | AT132: 90
A133: Braintree:Witham South | B133: 9354 | C133: 36.67757109 | D133: 2054 | E133: 1101 | F133: 1537 | G133: 1412 | H133: 1180 | I133: 926 | J133: 665 | K133: 479 | L133: 0 | M133: 16 | N133: 63 | O133: 16 | P133: 79 | Q133: 1.689116955 | R133: 54 | S133: 11 | T133: 7 | U133: 4 | V133: 3 | W133: 2 | X133: 13 | Y133: 18 | Z133: 19 | AA133: 18 | AB133: 6 | AC133: 2 | AD133: 0 | AE133: 112 | AF133: 2.394697456 | AG133: 93 | AH133: 12 | AI133: 7 | AJ133: 18 | AK133: 28 | AL133: 30 | AM133: 25 | AN133: 7 | AO133: 3 | AP133: 1 | AQ133: 86 | AR133: 102 | AS133: 216 | AT133: 236
A134: Rochford:Foulness and Great Wakering | B134: 5845 | C134: 42.20205304 | D134: 1032 | E134: 699 | F134: 538 | G134: 723 | H134: 949 | I134: 849 | J134: 643 | K134: 412 | L134: 1 | M134: 4 | N134: 54 | O134: 5 | P134: 59 | Q134: 2.018819504 | R134: 37 | S134: 12 | T134: 3 | U134: 5 | V134: 2 | W134: 3 | X134: 17 | Y134: 7 | Z134: 11 | AA134: 11 | AB134: 2 | AC134: 6 | AD134: 2 | AE134: 97 | AF134: 3.319076133 | AG134: 78 | AH134: 13 | AI134: 6 | AJ134: 18 | AK134: 14 | AL134: 19 | AM134: 24 | AN134: 9 | AO134: 8 | AP134: 1 | AQ134: 153 | AR134: 249 | AS134: 159 | AT134: 207
A135: Castle Point:Boyce | B135: 6881 | C135: 43.52637698 | D135: 1165 | E135: 821 | F135: 599 | G135: 860 | H135: 1106 | I135: 852 | J135: 785 | K135: 693 | L135: 1 | M135: 8 | N135: 55 | O135: 9 | P135: 64 | Q135: 1.860194739 | R135: 43 | S135: 7 | T135: 4 | U135: 7 | V135: 3 | W135: 1 | X135: 18 | Y135: 8 | Z135: 9 | AA135: 11 | AB135: 2 | AC135: 11 | AD135: 3 | AE135: 93 | AF135: 2.70309548 | AG135: 77 | AH135: 8 | AI135: 8 | AJ135: 18 | AK135: 21 | AL135: 16 | AM135: 15 | AN135: 7 | AO135: 7 | AP135: 4 | AQ135: 118 | AR135: 160 | AS135: 174 | AT135: 200
A136: Tendring:Golf Green | B136: 4963 | C136: 51.62321177 | D136: 573 | E136: 358 | F136: 331 | G136: 413 | H136: 661 | I136: 899 | J136: 1016 | K136: 712 | L136: 2 | M136: 5 | N136: 61 | O136: 7 | P136: 68 | Q136: 2.740278058 | R136: 41 | S136: 10 | T136: 6 | U136: 9 | V136: 2 | W136: 7 | X136: 16 | Y136: 12 | Z136: 10 | AA136: 12 | AB136: 4 | AC136: 4 | AD136: 2 | AE136: 88 | AF136: 3.546242192 | AG136: 69 | AH136: 11 | AI136: 8 | AJ136: 18 | AK136: 13 | AL136: 13 | AM136: 17 | AN136: 8 | AO136: 5 | AP136: 10 | AQ136: 266 | AR136: 269 | AS136: 189 | AT136: 191
A137: Harlow:Church Langley | B137: 9041 | C137: 34.72436677 | D137: 2294 | E137: 861 | F137: 1317 | G137: 1662 | H137: 1355 | I137: 726 | J137: 538 | K137: 288 | L137: 0 | M137: 8 | N137: 46 | O137: 8 | P137: 54 | Q137: 1.194558124 | R137: 45 | S137: 1 | T137: 4 | U137: 0 | V137: 4 | W137: 1 | X137: 9 | Y137: 10 | Z137: 14 | AA137: 14 | AB137: 5 | AC137: 1 | AD137: 0 | AE137: 88 | AF137: 1.946687313 | AG137: 80 | AH137: 1 | AI137: 7 | AJ137: 18 | AK137: 16 | AL137: 28 | AM137: 16 | AN137: 8 | AO137: 1 | AP137: 0 | AQ137: 20 | AR137: 51 | AS137: 141 | AT137: 189
A138: Harlow:Bush Fair | B138: 7843 | C138: 38.35777126 | D138: 1738 | E138: 931 | F138: 1115 | G138: 956 | H138: 1094 | I138: 782 | J138: 540 | K138: 687 | L138: 1 | M138: 4 | N138: 59 | O138: 5 | P138: 64 | Q138: 1.63202856 | R138: 36 | S138: 5 | T138: 11 | U138: 11 | V138: 1 | W138: 13 | X138: 22 | Y138: 8 | Z138: 8 | AA138: 6 | AB138: 3 | AC138: 0 | AD138: 0 | AE138: 76 | AF138: 1.938033916 | AG138: 69 | AH138: 5 | AI138: 2 | AJ138: 18 | AK138: 15 | AL138: 17 | AM138: 9 | AN138: 11 | AO138: 1 | AP138: 0 | AQ138: 73 | AR138: 50 | AS138: 172 | AT138: 163
A139: Chelmsford:Moulsham Lodge | B139: 5615 | C139: 41.04203028 | D139: 1056 | E139: 648 | F139: 660 | G139: 804 | H139: 802 | I139: 558 | J139: 612 | K139: 475 | L139: 0 | M139: 4 | N139: 55 | O139: 4 | P139: 59 | Q139: 2.101513802 | R139: 39 | S139: 7 | T139: 7 | U139: 4 | V139: 2 | W139: 1 | X139: 19 | Y139: 8 | Z139: 13 | AA139: 13 | AB139: 2 | AC139: 1 | AD139: 1 | AE139: 75 | AF139: 2.67141585 | AG139: 65 | AH139: 7 | AI139: 3 | AJ139: 18 | AK139: 13 | AL139: 15 | AM139: 19 | AN139: 5 | AO139: 3 | AP139: 1 | AQ139: 166 | AR139: 153 | AS139: 158 | AT139: 158
A140: Tendring:Harwich West Central | B140: 5134 | C140: 41.68971562 | D140: 1046 | E140: 560 | F140: 527 | G140: 598 | H140: 698 | I140: 647 | J140: 575 | K140: 483 | L140: 0 | M140: 8 | N140: 53 | O140: 8 | P140: 61 | Q140: 2.376314764 | R140: 40 | S140: 7 | T140: 4 | U140: 8 | V140: 2 | W140: 7 | X140: 18 | Y140: 10 | Z140: 5 | AA140: 9 | AB140: 6 | AC140: 3 | AD140: 2 | AE140: 70 | AF140: 2.726918582 | AG140: 59 | AH140: 6 | AI140: 5 | AJ140: 18 | AK140: 15 | AL140: 7 | AM140: 11 | AN140: 8 | AO140: 5 | AP140: 3 | AQ140: 213 | AR140: 165 | AS140: 162 | AT140: 146
A141: Maldon:Tillingham | B141: 2158 | C141: 46.21177016 | D141: 312 | E141: 193 | F141: 181 | G141: 223 | H141: 388 | I141: 393 | J141: 267 | K141: 201 | L141: 0 | M141: 5 | N141: 48 | O141: 5 | P141: 53 | Q141: 4.911955514 | R141: 40 | S141: 8 | T141: 1 | U141: 2 | V141: 2 | W141: 6 | X141: 16 | Y141: 4 | Z141: 7 | AA141: 8 | AB141: 5 | AC141: 3 | AD141: 2 | AE141: 62 | AF141: 5.746061168 | AG141: 46 | AH141: 8 | AI141: 8 | AJ141: 18 | AK141: 8 | AL141: 11 | AM141: 13 | AN141: 7 | AO141: 3 | AP141: 2 | AQ141: 296 | AR141: 296 | AS141: 140 | AT141: 120
A142: Basildon:St Martin's | B142: 9118 | C142: 36.22899759 | D142: 2083 | E142: 1160 | F142: 1516 | G142: 1206 | H142: 1171 | I142: 812 | J142: 568 | K142: 602 | L142: 0 | M142: 14 | N142: 99 | O142: 14 | P142: 113 | Q142: 2.478613731 | R142: 73 | S142: 14 | T142: 7 | U142: 12 | V142: 7 | W142: 7 | X142: 22 | Y142: 37 | Z142: 15 | AA142: 18 | AB142: 7 | AC142: 3 | AD142: 2 | AE142: 144 | AF142: 3.15858741 | AG142: 114 | AH142: 13 | AI142: 17 | AJ142: 17 | AK142: 34 | AL142: 37 | AM142: 30 | AN142: 16 | AO142: 6 | AP142: 2 | AQ142: 228 | AR142: 223 | AS142: 268 | AT142: 271
A143: Harlow:Staple Tye | B143: 7327 | C143: 36.23856967 | D143: 1730 | E143: 895 | F143: 1131 | G143: 945 | H143: 974 | I143: 715 | J143: 550 | K143: 387 | L143: 0 | M143: 7 | N143: 64 | O143: 7 | P143: 71 | Q143: 1.938037396 | R143: 43 | S143: 14 | T143: 2 | U143: 10 | V143: 2 | W143: 10 | X143: 16 | Y143: 18 | Z143: 11 | AA143: 10 | AB143: 3 | AC143: 1 | AD143: 1 | AE143: 91 | AF143: 2.483963423 | AG143: 69 | AH143: 15 | AI143: 7 | AJ143: 17 | AK143: 24 | AL143: 18 | AM143: 17 | AN143: 9 | AO143: 4 | AP143: 0 | AQ143: 132 | AR143: 126 | AS143: 198 | AT143: 194
A144: Maldon:Southminster | B144: 4430 | C144: 41.07042889 | D144: 884 | E144: 476 | F144: 446 | G144: 596 | H144: 682 | I144: 559 | J144: 491 | K144: 296 | L144: 0 | M144: 10 | N144: 53 | O144: 10 | P144: 63 | Q144: 2.844243792 | R144: 49 | S144: 4 | T144: 6 | U144: 2 | V144: 2 | W144: 5 | X144: 15 | Y144: 9 | Z144: 12 | AA144: 7 | AB144: 8 | AC144: 4 | AD144: 2 | AE144: 81 | AF144: 3.656884876 | AG144: 68 | AH144: 5 | AI144: 8 | AJ144: 17 | AK144: 10 | AL144: 21 | AM144: 11 | AN144: 13 | AO144: 7 | AP144: 2 | AQ144: 277 | AR144: 276 | AS144: 170 | AT144: 178
A145: Thurrock:Little Thurrock Blackshots | B145: 5742 | C145: 43.13409962 | D145: 1008 | E145: 616 | F145: 567 | G145: 740 | H145: 854 | I145: 756 | J145: 654 | K145: 547 | L145: 0 | M145: 2 | N145: 42 | O145: 2 | P145: 44 | Q145: 1.53256705 | R145: 30 | S145: 4 | T145: 2 | U145: 3 | V145: 5 | W145: 2 | X145: 12 | Y145: 9 | Z145: 7 | AA145: 8 | AB145: 3 | AC145: 1 | AD145: 1 | AE145: 73 | AF145: 2.54266806 | AG145: 64 | AH145: 5 | AI145: 4 | AJ145: 17 | AK145: 21 | AL145: 9 | AM145: 10 | AN145: 9 | AO145: 2 | AP145: 2 | AQ145: 61 | AR145: 133 | AS145: 110 | AT145: 152
A146: Braintree:Witham West | B146: 7022 | C146: 39.04856166 | D146: 1385 | E146: 849 | F146: 972 | G146: 937 | H146: 955 | I146: 849 | J146: 698 | K146: 377 | L146: 1 | M146: 6 | N146: 67 | O146: 7 | P146: 74 | Q146: 2.107661635 | R146: 44 | S146: 8 | T146: 7 | U146: 15 | V146: 0 | W146: 10 | X146: 20 | Y146: 19 | Z146: 5 | AA146: 12 | AB146: 5 | AC146: 0 | AD146: 1 | AE146: 71 | AF146: 2.022215893 | AG146: 62 | AH146: 8 | AI146: 1 | AJ146: 17 | AK146: 21 | AL146: 3 | AM146: 15 | AN146: 8 | AO146: 1 | AP146: 1 | AQ146: 167 | AR146: 60 | AS146: 207 | AT146: 150
A147: Tendring:St Marys | B147: 5026 | C147: 41.60505372 | D147: 1014 | E147: 660 | F147: 494 | G147: 501 | H147: 668 | I147: 597 | J147: 592 | K147: 500 | L147: 1 | M147: 9 | N147: 53 | O147: 10 | P147: 63 | Q147: 2.506963788 | R147: 34 | S147: 7 | T147: 11 | U147: 9 | V147: 2 | W147: 8 | X147: 18 | Y147: 13 | Z147: 9 | AA147: 6 | AB147: 6 | AC147: 3 | AD147: 0 | AE147: 67 | AF147: 2.666136092 | AG147: 54 | AH147: 8 | AI147: 5 | AJ147: 17 | AK147: 11 | AL147: 14 | AM147: 11 | AN147: 9 | AO147: 5 | AP147: 0 | AQ147: 235 | AR147: 152 | AS147: 169 | AT147: 138
A148: Epping Forest:North Weald Bassett | B148: 4726 | C148: 42.28459585 | D148: 854 | E148: 471 | F148: 586 | G148: 570 | H148: 717 | I148: 580 | J148: 524 | K148: 424 | L148: 0 | M148: 7 | N148: 46 | O148: 7 | P148: 53 | Q148: 2.242911553 | R148: 39 | S148: 6 | T148: 2 | U148: 1 | V148: 5 | W148: 3 | X148: 15 | Y148: 7 | Z148: 7 | AA148: 9 | AB148: 7 | AC148: 2 | AD148: 2 | AE148: 67 | AF148: 2.835378756 | AG148: 56 | AH148: 6 | AI148: 5 | AJ148: 17 | AK148: 11 | AL148: 11 | AM148: 10 | AN148: 9 | AO148: 3 | AP148: 3 | AQ148: 189 | AR148: 184 | AS148: 138 | AT148: 136
A149: Tendring:St Pauls | B149: 4788 | C149: 50.56725146 | D149: 610 | E149: 551 | F149: 303 | G149: 394 | H149: 576 | I149: 609 | J149: 827 | K149: 918 | L149: 0 | M149: 7 | N149: 36 | O149: 7 | P149: 43 | Q149: 1.796157059 | R149: 29 | S149: 5 | T149: 3 | U149: 4 | V149: 2 | W149: 2 | X149: 10 | Y149: 4 | Z149: 7 | AA149: 10 | AB149: 2 | AC149: 1 | AD149: 7 | AE149: 64 | AF149: 2.673350042 | AG149: 55 | AH149: 5 | AI149: 4 | AJ149: 17 | AK149: 9 | AL149: 13 | AM149: 12 | AN149: 3 | AO149: 4 | AP149: 6 | AQ149: 103 | AR149: 155 | AS149: 106 | AT149: 126
A150: Brentwood:Brentwood North | B150: 7150 | C150: 38.71328671 | D150: 1484 | E150: 792 | F150: 1090 | G150: 1022 | H150: 971 | I150: 670 | J150: 571 | K150: 550 | L150: 0 | M150: 10 | N150: 46 | O150: 10 | P150: 56 | Q150: 1.566433566 | R150: 43 | S150: 4 | T150: 0 | U150: 8 | V150: 1 | W150: 3 | X150: 23 | Y150: 10 | Z150: 8 | AA150: 7 | AB150: 3 | AC150: 1 | AD150: 1 | AE150: 62 | AF150: 1.734265734 | AG150: 55 | AH150: 4 | AI150: 3 | AJ150: 17 | AK150: 16 | AL150: 8 | AM150: 12 | AN150: 6 | AO150: 2 | AP150: 1 | AQ150: 67 | AR150: 31 | AS150: 151 | AT150: 121
A151: Rochford:Hawkwell West | B151: 4282 | C151: 43.67725362 | D151: 719 | E151: 515 | F151: 318 | G151: 557 | H151: 705 | I151: 547 | J151: 522 | K151: 399 | L151: 0 | M151: 4 | N151: 40 | O151: 4 | P151: 44 | Q151: 2.055114433 | R151: 29 | S151: 5 | T151: 0 | U151: 5 | V151: 5 | W151: 4 | X151: 15 | Y151: 4 | Z151: 4 | AA151: 7 | AB151: 6 | AC151: 3 | AD151: 0 | AE151: 62 | AF151: 2.895843064 | AG151: 52 | AH151: 5 | AI151: 5 | AJ151: 17 | AK151: 8 | AL151: 5 | AM151: 14 | AN151: 8 | AO151: 4 | AP151: 3 | AQ151: 158 | AR151: 194 | AS151: 111 | AT151: 118
A152: Maldon:Maldon South | B152: 4001 | C152: 41.8307923 | D152: 791 | E152: 433 | F152: 350 | G152: 531 | H152: 613 | I152: 498 | J152: 470 | K152: 315 | L152: 1 | M152: 4 | N152: 46 | O152: 5 | P152: 51 | Q152: 2.549362659 | R152: 35 | S152: 5 | T152: 3 | U152: 4 | V152: 4 | W152: 2 | X152: 19 | Y152: 7 | Z152: 7 | AA152: 7 | AB152: 4 | AC152: 2 | AD152: 2 | AE152: 55 | AF152: 2.749312672 | AG152: 47 | AH152: 5 | AI152: 3 | AJ152: 17 | AK152: 9 | AL152: 10 | AM152: 9 | AN152: 2 | AO152: 4 | AP152: 2 | AQ152: 240 | AR152: 169 | AS152: 129 | AT152: 101
A153: Tendring:Hamford | B153: 3788 | C153: 53.07206969 | D153: 481 | E153: 278 | F153: 226 | G153: 322 | H153: 449 | I153: 508 | J153: 711 | K153: 813 | L153: 1 | M153: 5 | N153: 31 | O153: 6 | P153: 37 | Q153: 1.953537487 | R153: 24 | S153: 8 | T153: 2 | U153: 2 | V153: 1 | W153: 2 | X153: 15 | Y153: 5 | Z153: 4 | AA153: 2 | AB153: 2 | AC153: 2 | AD153: 5 | AE153: 51 | AF153: 2.692713833 | AG153: 42 | AH153: 7 | AI153: 2 | AJ153: 17 | AK153: 5 | AL153: 7 | AM153: 3 | AN153: 5 | AO153: 2 | AP153: 9 | AQ153: 139 | AR153: 159 | AS153: 86 | AT153: 93
A154: Epping Forest:Loughton St Mary's | B154: 4997 | C154: 38.70622373 | D154: 1016 | E154: 679 | F154: 659 | G154: 653 | H154: 718 | I154: 520 | J154: 366 | K154: 386 | L154: 2 | M154: 6 | N154: 28 | O154: 8 | P154: 36 | Q154: 1.440864519 | R154: 24 | S154: 3 | T154: 2 | U154: 7 | V154: 0 | W154: 2 | X154: 16 | Y154: 4 | Z154: 8 | AA154: 3 | AB154: 1 | AC154: 1 | AD154: 1 | AE154: 46 | AF154: 1.841104663 | AG154: 41 | AH154: 4 | AI154: 1 | AJ154: 17 | AK154: 11 | AL154: 6 | AM154: 4 | AN154: 3 | AO154: 3 | AP154: 1 | AQ154: 41 | AR154: 40 | AS154: 80 | AT154: 83
A155: Harlow:Great Parndon | B155: 6418 | C155: 41.59831723 | D155: 1163 | E155: 724 | F155: 746 | G155: 807 | H155: 928 | I155: 857 | J155: 687 | K155: 506 | L155: 2 | M155: 6 | N155: 48 | O155: 8 | P155: 56 | Q155: 1.745091929 | R155: 39 | S155: 9 | T155: 3 | U155: 2 | V155: 3 | W155: 2 | X155: 14 | Y155: 8 | Z155: 10 | AA155: 7 | AB155: 8 | AC155: 4 | AD155: 1 | AE155: 80 | AF155: 2.49298847 | AG155: 66 | AH155: 9 | AI155: 5 | AJ155: 16 | AK155: 13 | AL155: 18 | AM155: 10 | AN155: 14 | AO155: 7 | AP155: 1 | AQ155: 96 | AR155: 128 | AS155: 154 | AT155: 176
A156: Tendring:St Osyth and Point Clear | B156: 4367 | C156: 48.90038928 | D156: 622 | E156: 389 | F156: 276 | G156: 385 | H156: 672 | I156: 634 | J156: 820 | K156: 569 | L156: 0 | M156: 3 | N156: 53 | O156: 3 | P156: 56 | Q156: 2.564689718 | R156: 40 | S156: 7 | T156: 2 | U156: 4 | V156: 3 | W156: 2 | X156: 16 | Y156: 13 | Z156: 10 | AA156: 6 | AB156: 2 | AC156: 4 | AD156: 1 | AE156: 75 | AF156: 3.434852301 | AG156: 61 | AH156: 7 | AI156: 7 | AJ156: 16 | AK156: 16 | AL156: 14 | AM156: 12 | AN156: 7 | AO156: 6 | AP156: 3 | AQ156: 244 | AR156: 257 | AS156: 156 | AT156: 157
A157: Tendring:Peter Bruff | B157: 4537 | C157: 40.31342297 | D157: 1006 | E157: 547 | F157: 433 | G157: 507 | H157: 586 | I157: 598 | J157: 511 | K157: 349 | L157: 0 | M157: 9 | N157: 43 | O157: 9 | P157: 52 | Q157: 2.29226361 | R157: 30 | S157: 10 | T157: 5 | U157: 3 | V157: 4 | W157: 1 | X157: 12 | Y157: 8 | Z157: 9 | AA157: 12 | AB157: 8 | AC157: 1 | AD157: 1 | AE157: 72 | AF157: 3.17390346 | AG157: 54 | AH157: 10 | AI157: 8 | AJ157: 16 | AK157: 13 | AL157: 9 | AM157: 18 | AN157: 6 | AO157: 5 | AP157: 2 | AQ157: 196 | AR157: 225 | AS157: 135 | AT157: 151
A158: Rochford:Hawkwell South | B158: 4276 | C158: 43.43755847 | D158: 671 | E158: 472 | F158: 530 | G158: 559 | H158: 613 | I158: 483 | J158: 476 | K158: 472 | L158: 0 | M158: 8 | N158: 53 | O158: 8 | P158: 61 | Q158: 2.85313377 | R158: 33 | S158: 11 | T158: 6 | U158: 7 | V158: 4 | W158: 8 | X158: 17 | Y158: 14 | Z158: 10 | AA158: 4 | AB158: 5 | AC158: 0 | AD158: 3 | AE158: 71 | AF158: 3.320860617 | AG158: 50 | AH158: 10 | AI158: 11 | AJ158: 16 | AK158: 16 | AL158: 15 | AM158: 7 | AN158: 7 | AO158: 4 | AP158: 4 | AQ158: 279 | AR158: 250 | AS158: 165 | AT158: 147
A159: Colchester:Fordham and Stour | B159: 5635 | C159: 41.91889973 | D159: 1093 | E159: 519 | F159: 460 | G159: 864 | H159: 971 | I159: 733 | J159: 618 | K159: 377 | L159: 0 | M159: 6 | N159: 45 | O159: 6 | P159: 51 | Q159: 1.81011535 | R159: 43 | S159: 4 | T159: 1 | U159: 1 | V159: 2 | W159: 5 | X159: 14 | Y159: 6 | Z159: 9 | AA159: 7 | AB159: 6 | AC159: 3 | AD159: 0 | AE159: 69 | AF159: 2.448979592 | AG159: 59 | AH159: 5 | AI159: 5 | AJ159: 16 | AK159: 12 | AL159: 16 | AM159: 11 | AN159: 7 | AO159: 4 | AP159: 3 | AQ159: 106 | AR159: 120 | AS159: 128 | AT159: 144
A160: Rochford:Lodge | B160: 4153 | C160: 43.53840597 | D160: 661 | E160: 487 | F160: 393 | G160: 524 | H160: 659 | I160: 543 | J160: 517 | K160: 369 | L160: 0 | M160: 2 | N160: 51 | O160: 2 | P160: 53 | Q160: 2.552371779 | R160: 38 | S160: 6 | T160: 3 | U160: 5 | V160: 1 | W160: 5 | X160: 18 | Y160: 3 | Z160: 8 | AA160: 8 | AB160: 7 | AC160: 1 | AD160: 3 | AE160: 67 | AF160: 3.226583193 | AG160: 60 | AH160: 6 | AI160: 1 | AJ160: 16 | AK160: 6 | AL160: 11 | AM160: 13 | AN160: 11 | AO160: 1 | AP160: 7 | AQ160: 241 | AR160: 235 | AS160: 139 | AT160: 137
A161: Uttlesford:Felsted | B161: 5734 | C161: 37.16724799 | D161: 1437 | E161: 710 | F161: 496 | G161: 889 | H161: 841 | I161: 539 | J161: 477 | K161: 345 | L161: 0 | M161: 8 | N161: 48 | O161: 8 | P161: 56 | Q161: 1.953261249 | R161: 41 | S161: 6 | T161: 2 | U161: 4 | V161: 3 | W161: 7 | X161: 15 | Y161: 6 | Z161: 7 | AA161: 9 | AB161: 8 | AC161: 2 | AD161: 2 | AE161: 64 | AF161: 2.23229857 | AG161: 55 | AH161: 5 | AI161: 4 | AJ161: 16 | AK161: 9 | AL161: 13 | AM161: 10 | AN161: 9 | AO161: 4 | AP161: 3 | AQ161: 138 | AR161: 83 | AS161: 152 | AT161: 129
A162: Epping Forest:Loughton Broadway | B162: 4434 | C162: 38.21154714 | D162: 871 | E162: 597 | F162: 643 | G162: 665 | H162: 632 | I162: 416 | J162: 299 | K162: 311 | L162: 0 | M162: 9 | N162: 34 | O162: 9 | P162: 43 | Q162: 1.939557961 | R162: 29 | S162: 5 | T162: 4 | U162: 5 | V162: 0 | W162: 5 | X162: 8 | Y162: 7 | Z162: 11 | AA162: 4 | AB162: 3 | AC162: 3 | AD162: 2 | AE162: 64 | AF162: 2.886783942 | AG162: 56 | AH162: 5 | AI162: 3 | AJ162: 16 | AK162: 11 | AL162: 16 | AM162: 5 | AN162: 11 | AO162: 2 | AP162: 2 | AQ162: 133 | AR162: 190 | AS162: 107 | AT162: 127
A163: Thurrock:Corringham and Fobbing | B163: 5409 | C163: 44.88537622 | D163: 863 | E163: 550 | F163: 495 | G163: 617 | H163: 839 | I163: 775 | J163: 742 | K163: 528 | L163: 0 | M163: 8 | N163: 44 | O163: 8 | P163: 52 | Q163: 1.92272139 | R163: 36 | S163: 5 | T163: 4 | U163: 3 | V163: 4 | W163: 2 | X163: 13 | Y163: 9 | Z163: 5 | AA163: 7 | AB163: 6 | AC163: 8 | AD163: 2 | AE163: 63 | AF163: 2.329450915 | AG163: 48 | AH163: 5 | AI163: 10 | AJ163: 16 | AK163: 11 | AL163: 8 | AM163: 9 | AN163: 9 | AO163: 7 | AP163: 3 | AQ163: 128 | AR163: 93 | AS163: 132 | AT163: 122
A164: Brentwood:Brentwood South | B164: 5924 | C164: 39.90411884 | D164: 1109 | E164: 688 | F164: 896 | G164: 898 | H164: 759 | I164: 604 | J164: 412 | K164: 558 | L164: 1 | M164: 6 | N164: 47 | O164: 7 | P164: 54 | Q164: 1.823092505 | R164: 34 | S164: 3 | T164: 5 | U164: 7 | V164: 5 | W164: 9 | X164: 10 | Y164: 8 | Z164: 6 | AA164: 10 | AB164: 2 | AC164: 3 | AD164: 5 | AE164: 61 | AF164: 2.059419311 | AG164: 55 | AH164: 3 | AI164: 3 | AJ164: 16 | AK164: 13 | AL164: 11 | AM164: 11 | AN164: 1 | AO164: 2 | AP164: 5 | AQ164: 109 | AR164: 66 | AS164: 144 | AT164: 116
A165: Chelmsford:The Lawns | B165: 5545 | C165: 44.15148783 | D165: 947 | E165: 583 | F165: 547 | G165: 652 | H165: 807 | I165: 682 | J165: 667 | K165: 660 | L165: 1 | M165: 4 | N165: 36 | O165: 5 | P165: 41 | Q165: 1.478809739 | R165: 26 | S165: 5 | T165: 6 | U165: 3 | V165: 1 | W165: 2 | X165: 15 | Y165: 3 | Z165: 6 | AA165: 5 | AB165: 4 | AC165: 4 | AD165: 1 | AE165: 60 | AF165: 2.164111812 | AG165: 53 | AH165: 6 | AI165: 1 | AJ165: 16 | AK165: 12 | AL165: 10 | AM165: 10 | AN165: 6 | AO165: 5 | AP165: 1 | AQ165: 51 | AR165: 81 | AS165: 101 | AT165: 111
A166: Brentwood:Herongate, Ingrave and West Horndon | B166: 3733 | C166: 44.23171712 | D166: 589 | E166: 426 | F166: 333 | G166: 455 | H166: 664 | I166: 480 | J166: 362 | K166: 424 | L166: 0 | M166: 7 | N166: 42 | O166: 7 | P166: 49 | Q166: 2.625234396 | R166: 43 | S166: 1 | T166: 1 | U166: 2 | V166: 2 | W166: 2 | X166: 16 | Y166: 4 | Z166: 4 | AA166: 10 | AB166: 1 | AC166: 4 | AD166: 7 | AE166: 57 | AF166: 3.053844093 | AG166: 50 | AH166: 1 | AI166: 6 | AJ166: 16 | AK166: 7 | AL166: 7 | AM166: 11 | AN166: 2 | AO166: 5 | AP166: 7 | AQ166: 254 | AR166: 210 | AS166: 122 | AT166: 107
A167: Southend-on-Sea:Leigh | B167: 10202 | C167: 38.92638698 | D167: 2034 | E167: 876 | F167: 1589 | G167: 1836 | H167: 1398 | I167: 998 | J167: 809 | K167: 662 | L167: 0 | M167: 9 | N167: 69 | O167: 9 | P167: 78 | Q167: 1.529111939 | R167: 44 | S167: 9 | T167: 7 | U167: 13 | V167: 5 | W167: 2 | X167: 19 | Y167: 20 | Z167: 10 | AA167: 12 | AB167: 3 | AC167: 3 | AD167: 4 | AE167: 91 | AF167: 1.783963929 | AG167: 79 | AH167: 9 | AI167: 3 | AJ167: 15 | AK167: 28 | AL167: 16 | AM167: 13 | AN167: 5 | AO167: 4 | AP167: 3 | AQ167: 60 | AR167: 37 | AS167: 215 | AT167: 196
A168: Harlow:Mark Hall | B168: 7443 | C168: 38.6191052 | D168: 1499 | E168: 1045 | F168: 1086 | G168: 862 | H168: 1003 | I168: 819 | J168: 510 | K168: 619 | L168: 0 | M168: 5 | N168: 63 | O168: 5 | P168: 68 | Q168: 1.827220207 | R168: 42 | S168: 10 | T168: 5 | U168: 7 | V168: 4 | W168: 7 | X168: 21 | Y168: 14 | Z168: 7 | AA168: 13 | AB168: 4 | AC168: 0 | AD168: 1 | AE168: 78 | AF168: 2.095929061 | AG168: 65 | AH168: 9 | AI168: 4 | AJ168: 15 | AK168: 22 | AL168: 12 | AM168: 17 | AN168: 9 | AO168: 0 | AP168: 1 | AQ168: 111 | AR168: 72 | AS168: 185 | AT168: 169
A169: Chelmsford:Writtle | B169: 5470 | C169: 45.02248629 | D169: 748 | E169: 781 | F169: 515 | G169: 623 | H169: 746 | I169: 659 | J169: 746 | K169: 652 | L169: 1 | M169: 9 | N169: 38 | O169: 10 | P169: 48 | Q169: 1.755027422 | R169: 28 | S169: 8 | T169: 5 | U169: 4 | V169: 3 | W169: 1 | X169: 12 | Y169: 9 | Z169: 6 | AA169: 8 | AB169: 4 | AC169: 1 | AD169: 4 | AE169: 77 | AF169: 2.81535649 | AG169: 63 | AH169: 9 | AI169: 5 | AJ169: 15 | AK169: 8 | AL169: 16 | AM169: 18 | AN169: 7 | AO169: 6 | AP169: 5 | AQ169: 99 | AR169: 182 | AS169: 118 | AT169: 165
A170: Maldon:Heybridge East | B170: 4154 | C170: 41.63673568 | D170: 705 | E170: 456 | F170: 472 | G170: 541 | H170: 673 | I170: 634 | J170: 441 | K170: 232 | L170: 3 | M170: 10 | N170: 48 | O170: 13 | P170: 61 | Q170: 2.936928262 | R170: 42 | S170: 10 | T170: 5 | U170: 0 | V170: 4 | W170: 0 | X170: 15 | Y170: 11 | Z170: 13 | AA170: 6 | AB170: 7 | AC170: 7 | AD170: 2 | AE170: 66 | AF170: 3.177660087 | AG170: 50 | AH170: 10 | AI170: 6 | AJ170: 15 | AK170: 15 | AL170: 12 | AM170: 5 | AN170: 8 | AO170: 7 | AP170: 4 | AQ170: 281 | AR170: 226 | AS170: 164 | AT170: 134
A171: Brentwood:Brentwood West | B171: 7434 | C171: 36.98614474 | D171: 1442 | E171: 780 | F171: 1515 | G171: 1218 | H171: 967 | I171: 621 | J171: 498 | K171: 393 | L171: 1 | M171: 9 | N171: 42 | O171: 10 | P171: 52 | Q171: 1.39897767 | R171: 35 | S171: 5 | T171: 3 | U171: 8 | V171: 1 | W171: 6 | X171: 12 | Y171: 12 | Z171: 7 | AA171: 5 | AB171: 4 | AC171: 4 | AD171: 1 | AE171: 66 | AF171: 1.775625504 | AG171: 59 | AH171: 5 | AI171: 2 | AJ171: 15 | AK171: 14 | AL171: 13 | AM171: 9 | AN171: 4 | AO171: 4 | AP171: 2 | AQ171: 40 | AR171: 35 | AS171: 131 | AT171: 133
A172: Braintree:Witham Chipping Hill and Central | B172: 4634 | C172: 44.28269314 | D172: 690 | E172: 521 | F172: 622 | G172: 545 | H172: 612 | I172: 552 | J172: 518 | K172: 574 | L172: 0 | M172: 4 | N172: 27 | O172: 4 | P172: 31 | Q172: 1.337936987 | R172: 20 | S172: 5 | T172: 3 | U172: 1 | V172: 2 | W172: 1 | X172: 7 | Y172: 6 | Z172: 4 | AA172: 6 | AB172: 4 | AC172: 2 | AD172: 1 | AE172: 66 | AF172: 2.848511006 | AG172: 54 | AH172: 5 | AI172: 7 | AJ172: 15 | AK172: 15 | AL172: 11 | AM172: 11 | AN172: 5 | AO172: 4 | AP172: 4 | AQ172: 32 | AR172: 186 | AS172: 64 | AT172: 132
A173: Maldon:Burnham-on-Crouch North | B173: 3765 | C173: 46.4626826 | D173: 584 | E173: 326 | F173: 302 | G173: 439 | H173: 550 | I173: 591 | J173: 588 | K173: 385 | L173: 0 | M173: 7 | N173: 35 | O173: 7 | P173: 42 | Q173: 2.231075697 | R173: 30 | S173: 4 | T173: 0 | U173: 4 | V173: 4 | W173: 4 | X173: 8 | Y173: 9 | Z173: 6 | AA173: 4 | AB173: 4 | AC173: 5 | AD173: 2 | AE173: 64 | AF173: 3.399734396 | AG173: 47 | AH173: 4 | AI173: 13 | AJ173: 15 | AK173: 12 | AL173: 9 | AM173: 10 | AN173: 6 | AO173: 6 | AP173: 4 | AQ173: 185 | AR173: 253 | AS173: 104 | AT173: 125
A174: Tendring:Lawford | B174: 4318 | C174: 42.9958314 | D174: 756 | E174: 429 | F174: 443 | G174: 573 | H174: 669 | I174: 558 | J174: 523 | K174: 367 | L174: 0 | M174: 1 | N174: 33 | O174: 1 | P174: 34 | Q174: 1.57480315 | R174: 24 | S174: 5 | T174: 1 | U174: 2 | V174: 2 | W174: 2 | X174: 10 | Y174: 4 | Z174: 6 | AA174: 4 | AB174: 2 | AC174: 2 | AD174: 3 | AE174: 56 | AF174: 2.593793423 | AG174: 41 | AH174: 6 | AI174: 9 | AJ174: 15 | AK174: 6 | AL174: 12 | AM174: 9 | AN174: 6 | AO174: 3 | AP174: 5 | AQ174: 68 | AR174: 140 | AS174: 77 | AT174: 103
A175: Tendring:Manningtree, Mistley, Little Bentley and Tendring | B175: 4506 | C175: 44.46071904 | D175: 719 | E175: 436 | F175: 424 | G175: 582 | H175: 720 | I175: 646 | J175: 550 | K175: 429 | L175: 1 | M175: 6 | N175: 31 | O175: 7 | P175: 38 | Q175: 1.686640036 | R175: 28 | S175: 6 | T175: 2 | U175: 2 | V175: 0 | W175: 1 | X175: 14 | Y175: 2 | Z175: 5 | AA175: 7 | AB175: 3 | AC175: 2 | AD175: 4 | AE175: 55 | AF175: 2.441189525 | AG175: 45 | AH175: 6 | AI175: 4 | AJ175: 15 | AK175: 3 | AL175: 13 | AM175: 11 | AN175: 7 | AO175: 1 | AP175: 3 | AQ175: 85 | AR175: 115 | AS175: 90 | AT175: 99
A176: Chelmsford:Little Baddow, Danbury and Sandon | B176: 8250 | C176: 45.0889697 | D176: 1531 | E176: 708 | F176: 555 | G176: 957 | H176: 1363 | I176: 1108 | J176: 1105 | K176: 923 | L176: 0 | M176: 9 | N176: 51 | O176: 9 | P176: 60 | Q176: 1.454545455 | R176: 43 | S176: 5 | T176: 5 | U176: 3 | V176: 4 | W176: 7 | X176: 14 | Y176: 13 | Z176: 8 | AA176: 9 | AB176: 2 | AC176: 3 | AD176: 3 | AE176: 95 | AF176: 2.303030303 | AG176: 79 | AH176: 6 | AI176: 10 | AJ176: 14 | AK176: 16 | AL176: 18 | AM176: 19 | AN176: 14 | AO176: 4 | AP176: 7 | AQ176: 45 | AR176: 89 | AS176: 161 | AT176: 205
A177: Tendring:Alton Park | B177: 4970 | C177: 38.4832998 | D177: 1113 | E177: 707 | F177: 515 | G177: 607 | H177: 646 | I177: 576 | J177: 441 | K177: 365 | L177: 1 | M177: 4 | N177: 71 | O177: 5 | P177: 76 | Q177: 3.058350101 | R177: 39 | S177: 13 | T177: 3 | U177: 17 | V177: 4 | W177: 8 | X177: 10 | Y177: 11 | Z177: 19 | AA177: 4 | AB177: 10 | AC177: 6 | AD177: 3 | AE177: 80 | AF177: 3.219315895 | AG177: 62 | AH177: 10 | AI177: 8 | AJ177: 14 | AK177: 10 | AL177: 21 | AM177: 10 | AN177: 15 | AO177: 5 | AP177: 2 | AQ177: 288 | AR177: 232 | AS177: 213 | AT177: 177
A178: Harlow:Netteswell | B178: 7781 | C178: 38.23698753 | D178: 1636 | E178: 940 | F178: 1237 | G178: 978 | H178: 1058 | I178: 772 | J178: 517 | K178: 643 | L178: 2 | M178: 15 | N178: 60 | O178: 17 | P178: 77 | Q178: 1.979180054 | R178: 44 | S178: 8 | T178: 8 | U178: 11 | V178: 6 | W178: 5 | X178: 20 | Y178: 19 | Z178: 13 | AA178: 10 | AB178: 4 | AC178: 4 | AD178: 2 | AE178: 79 | AF178: 2.030587328 | AG178: 63 | AH178: 6 | AI178: 10 | AJ178: 14 | AK178: 21 | AL178: 14 | AM178: 14 | AN178: 6 | AO178: 4 | AP178: 2 | AQ178: 145 | AR178: 62 | AS178: 214 | AT178: 175
A179: Thurrock:Little Thurrock Rectory | B179: 6092 | C179: 40.07140512 | D179: 1150 | E179: 668 | F179: 768 | G179: 902 | H179: 941 | I179: 719 | J179: 554 | K179: 390 | L179: 0 | M179: 6 | N179: 50 | O179: 6 | P179: 56 | Q179: 1.838476691 | R179: 37 | S179: 4 | T179: 6 | U179: 8 | V179: 1 | W179: 8 | X179: 14 | Y179: 8 | Z179: 7 | AA179: 14 | AB179: 4 | AC179: 1 | AD179: 0 | AE179: 79 | AF179: 2.593565332 | AG179: 71 | AH179: 4 | AI179: 4 | AJ179: 14 | AK179: 15 | AL179: 16 | AM179: 17 | AN179: 11 | AO179: 4 | AP179: 1 | AQ179: 113 | AR179: 139 | AS179: 155 | AT179: 173
A180: Tendring:St Johns | B180: 4731 | C180: 48.63432678 | D180: 659 | E180: 513 | F180: 356 | G180: 439 | H180: 548 | I180: 664 | J180: 849 | K180: 703 | L180: 1 | M180: 5 | N180: 58 | O180: 6 | P180: 64 | Q180: 2.705559078 | R180: 43 | S180: 6 | T180: 7 | U180: 4 | V180: 4 | W180: 8 | X180: 12 | Y180: 13 | Z180: 12 | AA180: 8 | AB180: 1 | AC180: 6 | AD180: 4 | AE180: 77 | AF180: 3.255125766 | AG180: 63 | AH180: 7 | AI180: 7 | AJ180: 14 | AK180: 17 | AL180: 14 | AM180: 13 | AN180: 1 | AO180: 9 | AP180: 7 | AQ180: 261 | AR180: 239 | AS180: 177 | AT180: 167
A181: Epping Forest:Epping Lindsey and Thornwood Common | B181: 6500 | C181: 42.57169231 | D181: 1222 | E181: 578 | F181: 692 | G181: 966 | H181: 938 | I181: 760 | J181: 675 | K181: 669 | L181: 0 | M181: 3 | N181: 47 | O181: 3 | P181: 50 | Q181: 1.538461538 | R181: 32 | S181: 3 | T181: 3 | U181: 9 | V181: 3 | W181: 3 | X181: 15 | Y181: 7 | Z181: 9 | AA181: 8 | AB181: 4 | AC181: 2 | AD181: 2 | AE181: 70 | AF181: 2.153846154 | AG181: 61 | AH181: 3 | AI181: 6 | AJ181: 14 | AK181: 9 | AL181: 20 | AM181: 8 | AN181: 10 | AO181: 4 | AP181: 4 | AQ181: 62 | AR181: 78 | AS181: 125 | AT181: 145
A182: Tendring:Harwich East Central | B182: 5148 | C182: 41.51087801 | D182: 1003 | E182: 658 | F182: 582 | G182: 564 | H182: 681 | I182: 604 | J182: 532 | K182: 524 | L182: 0 | M182: 6 | N182: 47 | O182: 6 | P182: 53 | Q182: 2.059052059 | R182: 32 | S182: 7 | T182: 5 | U182: 7 | V182: 2 | W182: 4 | X182: 14 | Y182: 14 | Z182: 4 | AA182: 7 | AB182: 7 | AC182: 1 | AD182: 1 | AE182: 63 | AF182: 2.447552448 | AG182: 52 | AH182: 8 | AI182: 3 | AJ182: 14 | AK182: 16 | AL182: 6 | AM182: 13 | AN182: 8 | AO182: 4 | AP182: 2 | AQ182: 160 | AR182: 118 | AS182: 137 | AT182: 123
A183: Epping Forest:Waltham Abbey Paternoster | B183: 4549 | C183: 41.06924599 | D183: 884 | E183: 546 | F183: 520 | G183: 598 | H183: 643 | I183: 489 | J183: 441 | K183: 428 | L183: 1 | M183: 10 | N183: 41 | O183: 11 | P183: 52 | Q183: 2.286216751 | R183: 37 | S183: 9 | T183: 3 | U183: 3 | V183: 0 | W183: 3 | X183: 20 | Y183: 9 | Z183: 7 | AA183: 8 | AB183: 0 | AC183: 4 | AD183: 0 | AE183: 55 | AF183: 2.418113871 | AG183: 47 | AH183: 8 | AI183: 0 | AJ183: 14 | AK183: 12 | AL183: 15 | AM183: 7 | AN183: 0 | AO183: 5 | AP183: 1 | AQ183: 195 | AR183: 107 | AS183: 133 | AT183: 102
A184: Rochford:Wheatley | B184: 4283 | C184: 42.92948868 | D184: 764 | E184: 490 | F184: 424 | G184: 625 | H184: 543 | I184: 495 | J184: 485 | K184: 457 | L184: 0 | M184: 6 | N184: 31 | O184: 6 | P184: 37 | Q184: 1.727760915 | R184: 24 | S184: 4 | T184: 2 | U184: 5 | V184: 2 | W184: 4 | X184: 9 | Y184: 6 | Z184: 10 | AA184: 2 | AB184: 2 | AC184: 2 | AD184: 2 | AE184: 55 | AF184: 2.568293252 | AG184: 46 | AH184: 5 | AI184: 4 | AJ184: 14 | AK184: 11 | AL184: 12 | AM184: 5 | AN184: 5 | AO184: 1 | AP184: 4 | AQ184: 90 | AR184: 135 | AS184: 85 | AT184: 98
A185: Maldon:Heybridge West | B185: 4295 | C185: 39.66076834 | D185: 931 | E185: 461 | F185: 471 | G185: 667 | H185: 554 | I185: 501 | J185: 380 | K185: 330 | L185: 0 | M185: 2 | N185: 42 | O185: 2 | P185: 44 | Q185: 2.048894063 | R185: 31 | S185: 7 | T185: 2 | U185: 2 | V185: 2 | W185: 6 | X185: 13 | Y185: 4 | Z185: 5 | AA185: 5 | AB185: 4 | AC185: 6 | AD185: 0 | AE185: 53 | AF185: 2.46798603 | AG185: 39 | AH185: 7 | AI185: 7 | AJ185: 14 | AK185: 5 | AL185: 6 | AM185: 13 | AN185: 6 | AO185: 5 | AP185: 2 | AQ185: 155 | AR185: 125 | AS185: 109 | AT185: 97
A186: Epping Forest:Loughton Alderton | B186: 4723 | C186: 37.64471734 | D186: 990 | E186: 654 | F186: 699 | G186: 629 | H186: 623 | I186: 459 | J186: 345 | K186: 324 | L186: 1 | M186: 6 | N186: 42 | O186: 7 | P186: 49 | Q186: 2.074952361 | R186: 30 | S186: 5 | T186: 3 | U186: 11 | V186: 0 | W186: 5 | X186: 15 | Y186: 9 | Z186: 7 | AA186: 7 | AB186: 2 | AC186: 1 | AD186: 3 | AE186: 51 | AF186: 2.159644294 | AG186: 46 | AH186: 4 | AI186: 1 | AJ186: 14 | AK186: 11 | AL186: 11 | AM186: 8 | AN186: 4 | AO186: 1 | AP186: 2 | AQ186: 164 | AR186: 79 | AS186: 120 | AT186: 94
A187: Braintree:Hatfield Peverel | B187: 4414 | C187: 45.51132759 | D187: 711 | E187: 396 | F187: 411 | G187: 551 | H187: 666 | I187: 636 | J187: 519 | K187: 524 | L187: 1 | M187: 5 | N187: 34 | O187: 6 | P187: 40 | Q187: 1.812415043 | R187: 23 | S187: 4 | T187: 7 | U187: 4 | V187: 2 | W187: 3 | X187: 11 | Y187: 6 | Z187: 3 | AA187: 4 | AB187: 6 | AC187: 1 | AD187: 6 | AE187: 46 | AF187: 2.0842773 | AG187: 38 | AH187: 5 | AI187: 3 | AJ187: 14 | AK187: 7 | AL187: 4 | AM187: 7 | AN187: 6 | AO187: 1 | AP187: 7 | AQ187: 107 | AR187: 69 | AS187: 98 | AT187: 84
A188: Epping Forest:Epping Hemnall | B188: 6344 | C188: 42.80059899 | D188: 1095 | E188: 574 | F188: 798 | G188: 973 | H188: 851 | I188: 748 | J188: 661 | K188: 644 | L188: 3 | M188: 12 | N188: 50 | O188: 15 | P188: 65 | Q188: 2.049180328 | R188: 39 | S188: 11 | T188: 3 | U188: 9 | V188: 3 | W188: 6 | X188: 11 | Y188: 17 | Z188: 14 | AA188: 7 | AB188: 6 | AC188: 3 | AD188: 1 | AE188: 77 | AF188: 2.427490542 | AG188: 62 | AH188: 12 | AI188: 3 | AJ188: 13 | AK188: 18 | AL188: 19 | AM188: 11 | AN188: 7 | AO188: 6 | AP188: 2 | AQ188: 156 | AR188: 111 | AS188: 180 | AT188: 168
A189: Braintree:Black Notley and Terling | B189: 4093 | C189: 41.58343513 | D189: 830 | E189: 410 | F189: 355 | G189: 603 | H189: 646 | I189: 485 | J189: 430 | K189: 334 | L189: 0 | M189: 8 | N189: 30 | O189: 8 | P189: 38 | Q189: 1.856828732 | R189: 24 | S189: 5 | T189: 2 | U189: 4 | V189: 3 | W189: 5 | X189: 11 | Y189: 1 | Z189: 5 | AA189: 12 | AB189: 2 | AC189: 1 | AD189: 0 | AE189: 58 | AF189: 2.834107012 | AG189: 45 | AH189: 6 | AI189: 7 | AJ189: 13 | AK189: 6 | AL189: 12 | AM189: 15 | AN189: 6 | AO189: 3 | AP189: 0 | AQ189: 117 | AR189: 183 | AS189: 92 | AT189: 109
A190: Tendring:St Bartholomews | B190: 4463 | C190: 55.94689671 | D190: 399 | E190: 304 | F190: 219 | G190: 310 | H190: 527 | I190: 717 | J190: 1089 | K190: 898 | L190: 0 | M190: 2 | N190: 32 | O190: 2 | P190: 34 | Q190: 1.523638808 | R190: 28 | S190: 0 | T190: 1 | U190: 4 | V190: 1 | W190: 0 | X190: 8 | Y190: 3 | Z190: 3 | AA190: 3 | AB190: 7 | AC190: 6 | AD190: 2 | AE190: 53 | AF190: 2.375084024 | AG190: 47 | AH190: 0 | AI190: 6 | AJ190: 13 | AK190: 6 | AL190: 5 | AM190: 9 | AN190: 7 | AO190: 6 | AP190: 3 | AQ190: 59 | AR190: 97 | AS190: 76 | AT190: 96
A191: Rochford:Rayleigh Central | B191: 4351 | C191: 43.85106872 | D191: 762 | E191: 459 | F191: 379 | G191: 579 | H191: 630 | I191: 534 | J191: 564 | K191: 444 | L191: 0 | M191: 8 | N191: 31 | O191: 8 | P191: 39 | Q191: 1.792691335 | R191: 22 | S191: 7 | T191: 2 | U191: 6 | V191: 2 | W191: 2 | X191: 14 | Y191: 5 | Z191: 5 | AA191: 7 | AB191: 1 | AC191: 5 | AD191: 0 | AE191: 52 | AF191: 2.390255114 | AG191: 40 | AH191: 7 | AI191: 5 | AJ191: 13 | AK191: 9 | AL191: 9 | AM191: 11 | AN191: 5 | AO191: 3 | AP191: 1 | AQ191: 102 | AR191: 101 | AS191: 95 | AT191: 95
A192: Uttlesford:Thaxted | B192: 3615 | C192: 43.83125864 | D192: 649 | E192: 363 | F192: 277 | G192: 484 | H192: 577 | I192: 469 | J192: 439 | K192: 357 | L192: 2 | M192: 5 | N192: 29 | O192: 7 | P192: 36 | Q192: 1.991701245 | R192: 28 | S192: 3 | T192: 1 | U192: 2 | V192: 2 | W192: 1 | X192: 10 | Y192: 5 | Z192: 10 | AA192: 3 | AB192: 2 | AC192: 1 | AD192: 3 | AE192: 41 | AF192: 2.268326418 | AG192: 36 | AH192: 3 | AI192: 2 | AJ192: 13 | AK192: 5 | AL192: 11 | AM192: 4 | AN192: 4 | AO192: 1 | AP192: 3 | AQ192: 149 | AR192: 88 | AS192: 83 | AT192: 67
A193: Colchester:Dedham and Langham | B193: 3004 | C193: 46.16677763 | D193: 480 | E193: 273 | F193: 194 | G193: 368 | H193: 506 | I193: 469 | J193: 384 | K193: 330 | L193: 2 | M193: 4 | N193: 16 | O193: 6 | P193: 22 | Q193: 1.464713715 | R193: 13 | S193: 5 | T193: 1 | U193: 0 | V193: 3 | W193: 1 | X193: 10 | Y193: 4 | Z193: 0 | AA193: 4 | AB193: 2 | AC193: 1 | AD193: 0 | AE193: 38 | AF193: 2.529960053 | AG193: 29 | AH193: 6 | AI193: 3 | AJ193: 13 | AK193: 5 | AL193: 4 | AM193: 6 | AN193: 6 | AO193: 2 | AP193: 1 | AQ193: 48 | AR193: 132 | AS193: 39 | AT193: 58
A194: Maldon:Maldon West | B194: 3774 | C194: 45.2509274 | D194: 546 | E194: 452 | F194: 318 | G194: 401 | H194: 613 | I194: 558 | J194: 543 | K194: 343 | L194: 0 | M194: 5 | N194: 23 | O194: 5 | P194: 28 | Q194: 1.483836778 | R194: 20 | S194: 2 | T194: 3 | U194: 2 | V194: 1 | W194: 1 | X194: 11 | Y194: 0 | Z194: 2 | AA194: 10 | AB194: 1 | AC194: 2 | AD194: 0 | AE194: 37 | AF194: 1.960784314 | AG194: 31 | AH194: 3 | AI194: 3 | AJ194: 13 | AK194: 3 | AL194: 5 | AM194: 12 | AN194: 3 | AO194: 1 | AP194: 0 | AQ194: 52 | AR194: 52 | AS194: 56 | AT194: 55
A195: Chelmsford:Goat Hall | B195: 5661 | C195: 41.44868398 | D195: 1005 | E195: 643 | F195: 612 | G195: 769 | H195: 874 | I195: 746 | J195: 654 | K195: 358 | L195: 0 | M195: 7 | N195: 42 | O195: 7 | P195: 49 | Q195: 1.731142908 | R195: 29 | S195: 6 | T195: 5 | U195: 8 | V195: 1 | W195: 1 | X195: 10 | Y195: 13 | Z195: 11 | AA195: 3 | AB195: 5 | AC195: 1 | AD195: 4 | AE195: 69 | AF195: 2.437731849 | AG195: 59 | AH195: 6 | AI195: 4 | AJ195: 12 | AK195: 15 | AL195: 17 | AM195: 9 | AN195: 8 | AO195: 2 | AP195: 4 | AQ195: 92 | AR195: 113 | AS195: 121 | AT195: 143
A196: Rochford:Trinity | B196: 3509 | C196: 46.41065831 | D196: 568 | E196: 329 | F196: 229 | G196: 465 | H196: 504 | I196: 456 | J196: 515 | K196: 443 | L196: 0 | M196: 9 | N196: 40 | O196: 9 | P196: 49 | Q196: 2.792818467 | R196: 34 | S196: 3 | T196: 4 | U196: 3 | V196: 5 | W196: 1 | X196: 6 | Y196: 8 | Z196: 11 | AA196: 7 | AB196: 6 | AC196: 2 | AD196: 5 | AE196: 62 | AF196: 3.533770305 | AG196: 56 | AH196: 4 | AI196: 2 | AJ196: 12 | AK196: 8 | AL196: 9 | AM196: 11 | AN196: 8 | AO196: 5 | AP196: 6 | AQ196: 271 | AR196: 268 | AS196: 124 | AT196: 119
A197: Tendring:Pier | B197: 4978 | C197: 42.79369225 | D197: 799 | E197: 749 | F197: 607 | G197: 520 | H197: 644 | I197: 567 | J197: 478 | K197: 614 | L197: 1 | M197: 7 | N197: 48 | O197: 8 | P197: 56 | Q197: 2.249899558 | R197: 37 | S197: 3 | T197: 6 | U197: 9 | V197: 1 | W197: 9 | X197: 17 | Y197: 9 | Z197: 7 | AA197: 2 | AB197: 5 | AC197: 1 | AD197: 5 | AE197: 60 | AF197: 2.410606669 | AG197: 51 | AH197: 5 | AI197: 4 | AJ197: 12 | AK197: 13 | AL197: 8 | AM197: 12 | AN197: 8 | AO197: 3 | AP197: 3 | AQ197: 191 | AR197: 104 | AS197: 153 | AT197: 115
A198: Tendring:Ardleigh and Little Bromley | B198: 2313 | C198: 43.64202335 | D198: 386 | E198: 237 | F198: 190 | G198: 276 | H198: 413 | I198: 387 | J198: 270 | K198: 154 | L198: 0 | M198: 3 | N198: 29 | O198: 3 | P198: 32 | Q198: 2.766969304 | R198: 21 | S198: 6 | T198: 0 | U198: 2 | V198: 3 | W198: 2 | X198: 9 | Y198: 5 | Z198: 5 | AA198: 6 | AB198: 3 | AC198: 1 | AD198: 1 | AE198: 51 | AF198: 4.409857328 | AG198: 39 | AH198: 6 | AI198: 6 | AJ198: 12 | AK198: 8 | AL198: 10 | AM198: 9 | AN198: 8 | AO198: 2 | AP198: 2 | AQ198: 270 | AR198: 294 | AS198: 71 | AT198: 92
A199: Rochford:Whitehouse | B199: 4201 | C199: 44.65317781 | D199: 678 | E199: 487 | F199: 383 | G199: 518 | H199: 591 | I199: 495 | J199: 513 | K199: 536 | L199: 0 | M199: 9 | N199: 27 | O199: 9 | P199: 36 | Q199: 1.713877648 | R199: 20 | S199: 4 | T199: 1 | U199: 10 | V199: 1 | W199: 2 | X199: 11 | Y199: 5 | Z199: 4 | AA199: 4 | AB199: 5 | AC199: 2 | AD199: 3 | AE199: 47 | AF199: 2.237562485 | AG199: 41 | AH199: 4 | AI199: 2 | AJ199: 12 | AK199: 6 | AL199: 9 | AM199: 8 | AN199: 6 | AO199: 3 | AP199: 1 | AQ199: 89 | AR199: 84 | AS199: 82 | AT199: 85
A200: Uttlesford:Great Dunmow North | B200: 4203 | C200: 39.68950749 | D200: 901 | E200: 426 | F200: 420 | G200: 617 | H200: 710 | I200: 469 | J200: 387 | K200: 273 | L200: 1 | M200: 8 | N200: 27 | O200: 9 | P200: 36 | Q200: 1.713062099 | R200: 23 | S200: 6 | T200: 1 | U200: 4 | V200: 2 | W200: 2 | X200: 11 | Y200: 9 | Z200: 6 | AA200: 2 | AB200: 1 | AC200: 4 | AD200: 1 | AE200: 45 | AF200: 2.141327623 | AG200: 37 | AH200: 6 | AI200: 2 | AJ200: 12 | AK200: 12 | AL200: 9 | AM200: 3 | AN200: 2 | AO200: 4 | AP200: 3 | AQ200: 87 | AR200: 76 | AS200: 81 | AT200: 80
... 97 more rows
